Workbook

Sheet base
D2: Cliquez pour afficher le plan d'amortissement
A3: Valeur d'origine | B3: 63,000.00
A4: date d'entrée | B4: 1994-06-05
A5: d en mois | B5: 48
A6: Système | B6: dégressif

Sheet formules (hidden)
A7: =IF(base!B6="linéaire","",IF(base!B6="dégressif","Taux à retenir","")) -> Taux à retenir | B7: somme n | C7: TLc | D7: td
A8: =IF($A$7="","",IF($A$7="Taux à retenir",IF(OR(C8="",D8=""),"",MAX(C8,D8)))) -> 37.50 | B8: =IF(Tableau!F7="","",Tableau!F7) -> 7 | C8: =IF(Tableau!F7="","",1200/base!B5) -> 25.00 | D8: =IF(Tableau!F7="","",IF(base!$B$5>72,(1200/base!$B$5)*3,IF(base!$B$5>48,(1200/base!$B$5)*2,IF(base!$B$5>=36,(1200/base!$B$5)*1.5,(1200/base!$B$5))))) -> 37.5
A9: =IF($A$7="","",IF($A$7="Taux à retenir",IF(OR(C9="",D9=""),"",MAX(C9,D9)))) -> 37.50 | B9: =IF(Tableau!F8="","",IF(B8+Tableau!F8>base!$B$5,"",B8+Tableau!F8)) -> 19 | C9: =IF(C8="","",IF(B9="","",IF((1200/(base!$B$5-B8))>D9,1200/(base!$B$5-B8),1200/(base!$B$5-B8)))) -> 29.27 | D9: =IF(Tableau!F8="","",IF(base!$B$5>72,(1200/base!$B$5)*3,IF(base!$B$5>48,(1200/base!$B$5)*2,IF(base!$B$5>=36,(1200/base!$B$5)*1.5,(1200/base!$B$5))))) -> 37.5
A10: 41.38 | B10: =IF(Tableau!F9="","",IF(B9+Tableau!F9>base!$B$5,"",B9+Tableau!F9)) -> 31 | C10: =IF(C9="","",IF(B10="","",IF((1200/(base!$B$5-B9))>D10,1200/(base!$B$5-B9),1200/(base!$B$5-B9)))) -> 41.38 | D10: =IF(Tableau!F9="","",IF(base!$B$5>72,(1200/base!$B$5)*3,IF(base!$B$5>48,(1200/base!$B$5)*2,IF(base!$B$5>=36,(1200/base!$B$5)*1.5,(1200/base!$B$5))))) -> 37.5
A11: 70.59 | B11: =IF(Tableau!F10="","",IF(B10+Tableau!F10>base!$B$5,"",B10+Tableau!F10)) -> 43 | C11: =IF(C10="","",IF(B11="","",IF((1200/(base!$B$5-B10))>D11,1200/(base!$B$5-B10),1200/(base!$B$5-B10)))) -> 70.59 | D11: =IF(Tableau!F10="","",IF(base!$B$5>72,(1200/base!$B$5)*3,IF(base!$B$5>48,(1200/base!$B$5)*2,IF(base!$B$5>=36,(1200/base!$B$5)*1.5,(1200/base!$B$5))))) -> 37.5
A12: 240.00 | B12: =IF(Tableau!F11="","",IF(B11+Tableau!F11>base!$B$5,"",B11+Tableau!F11)) -> 48 | C12: =IF(C11="","",IF(B12="","",IF((1200/(base!$B$5-B11))>D12,1200/(base!$B$5-B11),1200/(base!$B$5-B11)))) -> 240.00 | D12: =IF(Tableau!F11="","",IF(base!$B$5>72,(1200/base!$B$5)*3,IF(base!$B$5>48,(1200/base!$B$5)*2,IF(base!$B$5>=36,(1200/base!$B$5)*1.5,(1200/base!$B$5))))) -> 37.5
B13: =IF(Tableau!F12="","",IF(B12+Tableau!F12>base!$B$5,"",B12+Tableau!F12)) ->  | C13: =IF(C12="","",IF(B13="","",IF((1200/(base!$B$5-B12))>D13,1200/(base!$B$5-B12),1200/(base!$B$5-B12)))) ->  | D13: =IF(Tableau!F12="","",IF(base!$B$5>72,(1200/base!$B$5)*3,IF(base!$B$5>48,(1200/base!$B$5)*2,IF(base!$B$5>=36,(1200/base!$B$5)*1.5,(1200/base!$B$5))))) -> 
B14: =IF(Tableau!F13="","",IF(B13+Tableau!F13>base!$B$5,"",B13+Tableau!F13)) ->  | C14: =IF(C13="","",IF(B14="","",IF((1200/(base!$B$5-B13))>D14,1200/(base!$B$5-B13),1200/(base!$B$5-B13)))) ->  | D14: =IF(Tableau!F13="","",IF(base!$B$5>72,(1200/base!$B$5)*3,IF(base!$B$5>48,(1200/base!$B$5)*2,IF(base!$B$5>=36,(1200/base!$B$5)*1.5,(1200/base!$B$5))))) -> 
B15: =IF(Tableau!F14="","",IF(B14+Tableau!F14>base!$B$5,"",B14+Tableau!F14)) ->  | C15: =IF(C14="","",IF(B15="","",IF((1200/(base!$B$5-B14))>D15,1200/(base!$B$5-B14),1200/(base!$B$5-B14)))) ->  | D15: =IF(Tableau!F14="","",IF(base!$B$5>72,(1200/base!$B$5)*3,IF(base!$B$5>48,(1200/base!$B$5)*2,IF(base!$B$5>=36,(1200/base!$B$5)*1.5,(1200/base!$B$5))))) -> 
B16: =IF(Tableau!F15="","",IF(B15+Tableau!F15>base!$B$5,"",B15+Tableau!F15)) ->  | C16: =IF(C15="","",IF(B16="","",IF((1200/(base!$B$5-B15))>D16,1200/(base!$B$5-B15),1200/(base!$B$5-B15)))) ->  | D16: =IF(Tableau!F15="","",IF(base!$B$5>72,(1200/base!$B$5)*3,IF(base!$B$5>48,(1200/base!$B$5)*2,IF(base!$B$5>=36,(1200/base!$B$5)*1.5,(1200/base!$B$5))))) -> 
B17: =IF(Tableau!F16="","",IF(B16+Tableau!F16>base!$B$5,"",B16+Tableau!F16)) ->  | C17: =IF(C16="","",IF(B17="","",IF((1200/(base!$B$5-B16))>D17,1200/(base!$B$5-B16),1200/(base!$B$5-B16)))) ->  | D17: =IF(Tableau!F16="","",IF(base!$B$5>72,(1200/base!$B$5)*3,IF(base!$B$5>48,(1200/base!$B$5)*2,IF(base!$B$5>=36,(1200/base!$B$5)*1.5,(1200/base!$B$5))))) -> 
B18: =IF(Tableau!F17="","",IF(B17+Tableau!F17>base!$B$5,"",B17+Tableau!F17)) ->  | C18: =IF(C17="","",IF(B18="","",IF((1200/(base!$B$5-B17))>D18,1200/(base!$B$5-B17),1200/(base!$B$5-B17)))) ->  | D18: =IF(Tableau!F17="","",IF(base!$B$5>72,(1200/base!$B$5)*3,IF(base!$B$5>48,(1200/base!$B$5)*2,IF(base!$B$5>=36,(1200/base!$B$5)*1.5,(1200/base!$B$5))))) -> 
B19: =IF(Tableau!F18="","",IF(B18+Tableau!F18>base!$B$5,"",B18+Tableau!F18)) ->  | C19: =IF(C18="","",IF(B19="","",IF((1200/(base!$B$5-B18))>D19,1200/(base!$B$5-B18),1200/(base!$B$5-B18)))) ->  | D19: =IF(Tableau!F18="","",IF(base!$B$5>72,(1200/base!$B$5)*3,IF(base!$B$5>48,(1200/base!$B$5)*2,IF(base!$B$5>=36,(1200/base!$B$5)*1.5,(1200/base!$B$5))))) -> 
B20: =IF(Tableau!F19="","",IF(B19+Tableau!F19>base!$B$5,"",B19+Tableau!F19)) ->  | C20: =IF(C19="","",IF(B20="","",IF((1200/(base!$B$5-B19))>D20,1200/(base!$B$5-B19),1200/(base!$B$5-B19)))) ->  | D20: =IF(Tableau!F19="","",IF(base!$B$5>72,(1200/base!$B$5)*3,IF(base!$B$5>48,(1200/base!$B$5)*2,IF(base!$B$5>=36,(1200/base!$B$5)*1.5,(1200/base!$B$5))))) -> 
B21: =IF(Tableau!F20="","",IF(B20+Tableau!F20>base!$B$5,"",B20+Tableau!F20)) ->  | C21: =IF(C20="","",IF(B21="","",IF((1200/(base!$B$5-B20))>D21,1200/(base!$B$5-B20),1200/(base!$B$5-B20)))) ->  | D21: =IF(Tableau!F20="","",IF(base!$B$5>72,(1200/base!$B$5)*3,IF(base!$B$5>48,(1200/base!$B$5)*2,IF(base!$B$5>=36,(1200/base!$B$5)*1.5,(1200/base!$B$5))))) -> 
B22: =IF(Tableau!F21="","",IF(B21+Tableau!F21>base!$B$5,"",B21+Tableau!F21)) ->  | C22: =IF(C21="","",IF(B22="","",IF((1200/(base!$B$5-B21))>D22,1200/(base!$B$5-B21),1200/(base!$B$5-B21)))) ->  | D22: =IF(Tableau!F21="","",IF(base!$B$5>72,(1200/base!$B$5)*3,IF(base!$B$5>48,(1200/base!$B$5)*2,IF(base!$B$5>=36,(1200/base!$B$5)*1.5,(1200/base!$B$5))))) -> 
B23: =IF(Tableau!F22="","",IF(B22+Tableau!F22>base!$B$5,"",B22+Tableau!F22)) ->  | C23: =IF(C22="","",IF(B23="","",IF((1200/(base!$B$5-B22))>D23,1200/(base!$B$5-B22),1200/(base!$B$5-B22)))) ->  | D23: =IF(Tableau!F22="","",IF(base!$B$5>72,(1200/base!$B$5)*3,IF(base!$B$5>48,(1200/base!$B$5)*2,IF(base!$B$5>=36,(1200/base!$B$5)*1.5,(1200/base!$B$5))))) -> 
B24: =IF(Tableau!F23="","",IF(B23+Tableau!F23>base!$B$5,"",B23+Tableau!F23)) ->  | C24: =IF(C23="","",IF(B24="","",IF((1200/(base!$B$5-B23))>D24,1200/(base!$B$5-B23),1200/(base!$B$5-B23)))) ->  | D24: =IF(Tableau!F23="","",IF(base!$B$5>72,(1200/base!$B$5)*3,IF(base!$B$5>48,(1200/base!$B$5)*2,IF(base!$B$5>=36,(1200/base!$B$5)*1.5,(1200/base!$B$5))))) -> 
B25: =IF(Tableau!F24="","",IF(B24+Tableau!F24>base!$B$5,"",B24+Tableau!F24)) ->  | C25: =IF(C24="","",IF(B25="","",IF((1200/(base!$B$5-B24))>D25,1200/(base!$B$5-B24),1200/(base!$B$5-B24)))) ->  | D25: =IF(Tableau!F24="","",IF(base!$B$5>72,(1200/base!$B$5)*3,IF(base!$B$5>48,(1200/base!$B$5)*2,IF(base!$B$5>=36,(1200/base!$B$5)*1.5,(1200/base!$B$5))))) -> 
B26: =IF(Tableau!F25="","",IF(B25+Tableau!F25>base!$B$5,"",B25+Tableau!F25)) ->  | C26: =IF(C25="","",IF(B26="","",IF((1200/(base!$B$5-B25))>D26,1200/(base!$B$5-B25),1200/(base!$B$5-B25)))) ->  | D26: =IF(Tableau!F25="","",IF(base!$B$5>72,(1200/base!$B$5)*3,IF(base!$B$5>48,(1200/base!$B$5)*2,IF(base!$B$5>=36,(1200/base!$B$5)*1.5,(1200/base!$B$5))))) -> 
B27: =IF(Tableau!F26="","",IF(B26+Tableau!F26>base!$B$5,"",B26+Tableau!F26)) ->  | C27: =IF(C26="","",IF(B27="","",IF((1200/(base!$B$5-B26))>D27,1200/(base!$B$5-B26),1200/(base!$B$5-B26)))) ->  | D27: =IF(Tableau!F26="","",IF(base!$B$5>72,(1200/base!$B$5)*3,IF(base!$B$5>48,(1200/base!$B$5)*2,IF(base!$B$5>=36,(1200/base!$B$5)*1.5,(1200/base!$B$5))))) -> 
B28: =IF(Tableau!F27="","",IF(B27+Tableau!F27>base!$B$5,"",B27+Tableau!F27)) ->  | C28: =IF(C27="","",IF(B28="","",IF((1200/(base!$B$5-B27))>D28,1200/(base!$B$5-B27),1200/(base!$B$5-B27)))) ->  | D28: =IF(Tableau!F27="","",IF(base!$B$5>72,(1200/base!$B$5)*3,IF(base!$B$5>48,(1200/base!$B$5)*2,IF(base!$B$5>=36,(1200/base!$B$5)*1.5,(1200/base!$B$5))))) -> 
B29: =IF(Tableau!F28="","",IF(B28+Tableau!F28>base!$B$5,"",B28+Tableau!F28)) ->  | C29: =IF(C28="","",IF(B29="","",IF((1200/(base!$B$5-B28))>D29,1200/(base!$B$5-B28),1200/(base!$B$5-B28)))) ->  | D29: =IF(Tableau!F28="","",IF(base!$B$5>72,(1200/base!$B$5)*3,IF(base!$B$5>48,(1200/base!$B$5)*2,IF(base!$B$5>=36,(1200/base!$B$5)*1.5,(1200/base!$B$5))))) -> 
B30: =IF(Tableau!F29="","",IF(B29+Tableau!F29>base!$B$5,"",B29+Tableau!F29)) ->  | C30: =IF(C29="","",IF(B30="","",IF((1200/(base!$B$5-B29))>D30,1200/(base!$B$5-B29),1200/(base!$B$5-B29)))) ->  | D30: =IF(Tableau!F29="","",IF(base!$B$5>72,(1200/base!$B$5)*3,IF(base!$B$5>48,(1200/base!$B$5)*2,IF(base!$B$5>=36,(1200/base!$B$5)*1.5,(1200/base!$B$5))))) -> 
B31: =IF(Tableau!F30="","",IF(B30+Tableau!F30>base!$B$5,"",B30+Tableau!F30)) ->  | C31: =IF(C30="","",IF(B31="","",IF((1200/(base!$B$5-B30))>D31,1200/(base!$B$5-B30),1200/(base!$B$5-B30)))) ->  | D31: =IF(Tableau!F30="","",IF(base!$B$5>72,(1200/base!$B$5)*3,IF(base!$B$5>48,(1200/base!$B$5)*2,IF(base!$B$5>=36,(1200/base!$B$5)*1.5,(1200/base!$B$5))))) -> 
B32: =IF(Tableau!F31="","",IF(B31+Tableau!F31>base!$B$5,"",B31+Tableau!F31)) ->  | C32: =IF(C31="","",IF(B32="","",IF((1200/(base!$B$5-B31))>D32,1200/(base!$B$5-B31),1200/(base!$B$5-B31)))) ->  | D32: =IF(Tableau!F31="","",IF(base!$B$5>72,(1200/base!$B$5)*3,IF(base!$B$5>48,(1200/base!$B$5)*2,IF(base!$B$5>=36,(1200/base!$B$5)*1.5,(1200/base!$B$5))))) -> 
B33: =IF(Tableau!F32="","",IF(B32+Tableau!F32>base!$B$5,"",B32+Tableau!F32)) ->  | C33: =IF(C32="","",IF(B33="","",IF((1200/(base!$B$5-B32))>D33,1200/(base!$B$5-B32),1200/(base!$B$5-B32)))) ->  | D33: =IF(Tableau!F32="","",IF(base!$B$5>72,(1200/base!$B$5)*3,IF(base!$B$5>48,(1200/base!$B$5)*2,IF(base!$B$5>=36,(1200/base!$B$5)*1.5,(1200/base!$B$5))))) -> 
B34: =IF(Tableau!F33="","",IF(B33+Tableau!F33>base!$B$5,"",B33+Tableau!F33)) ->  | C34: =IF(C33="","",IF(B34="","",IF((1200/(base!$B$5-B33))>D34,1200/(base!$B$5-B33),1200/(base!$B$5-B33)))) ->  | D34: =IF(Tableau!F33="","",IF(base!$B$5>72,(1200/base!$B$5)*3,IF(base!$B$5>48,(1200/base!$B$5)*2,IF(base!$B$5>=36,(1200/base!$B$5)*1.5,(1200/base!$B$5))))) -> 
B35: =IF(Tableau!F34="","",IF(B34+Tableau!F34>base!$B$5,"",B34+Tableau!F34)) ->  | C35: =IF(C34="","",IF(B35="","",IF((1200/(base!$B$5-B34))>D35,1200/(base!$B$5-B34),1200/(base!$B$5-B34)))) ->  | D35: =IF(Tableau!F34="","",IF(base!$B$5>72,(1200/base!$B$5)*3,IF(base!$B$5>48,(1200/base!$B$5)*2,IF(base!$B$5>=36,(1200/base!$B$5)*1.5,(1200/base!$B$5))))) -> 
B36: =IF(Tableau!F35="","",IF(B35+Tableau!F35>base!$B$5,"",B35+Tableau!F35)) ->  | C36: =IF(C35="","",IF(B36="","",IF((1200/(base!$B$5-B35))>D36,1200/(base!$B$5-B35),1200/(base!$B$5-B35)))) ->  | D36: =IF(Tableau!F35="","",IF(base!$B$5>72,(1200/base!$B$5)*3,IF(base!$B$5>48,(1200/base!$B$5)*2,IF(base!$B$5>=36,(1200/base!$B$5)*1.5,(1200/base!$B$5))))) -> 
B37: =IF(Tableau!F36="","",IF(B36+Tableau!F36>base!$B$5,"",B36+Tableau!F36)) ->  | C37: =IF(C36="","",IF(B37="","",IF((1200/(base!$B$5-B36))>D37,1200/(base!$B$5-B36),1200/(base!$B$5-B36)))) ->  | D37: =IF(Tableau!F36="","",IF(base!$B$5>72,(1200/base!$B$5)*3,IF(base!$B$5>48,(1200/base!$B$5)*2,IF(base!$B$5>=36,(1200/base!$B$5)*1.5,(1200/base!$B$5))))) -> 
B38: =IF(Tableau!F37="","",IF(B37+Tableau!F37>base!$B$5,"",B37+Tableau!F37)) ->  | C38: =IF(C37="","",IF(B38="","",IF((1200/(base!$B$5-B37))>D38,1200/(base!$B$5-B37),1200/(base!$B$5-B37)))) ->  | D38: =IF(Tableau!F37="","",IF(base!$B$5>72,(1200/base!$B$5)*3,IF(base!$B$5>48,(1200/base!$B$5)*2,IF(base!$B$5>=36,(1200/base!$B$5)*1.5,(1200/base!$B$5))))) -> 
B39: =IF(Tableau!F38="","",IF(B38+Tableau!F38>base!$B$5,"",B38+Tableau!F38)) ->  | C39: =IF(C38="","",IF(B39="","",IF((1200/(base!$B$5-B38))>D39,1200/(base!$B$5-B38),1200/(base!$B$5-B38)))) ->  | D39: =IF(Tableau!F38="","",IF(base!$B$5>72,(1200/base!$B$5)*3,IF(base!$B$5>48,(1200/base!$B$5)*2,IF(base!$B$5>=36,(1200/base!$B$5)*1.5,(1200/base!$B$5))))) -> 
B40: =IF(Tableau!F39="","",IF(B39+Tableau!F39>base!$B$5,"",B39+Tableau!F39)) ->  | C40: =IF(C39="","",IF(B40="","",IF((1200/(base!$B$5-B39))>D40,1200/(base!$B$5-B39),1200/(base!$B$5-B39)))) ->  | D40: =IF(Tableau!F39="","",IF(base!$B$5>72,(1200/base!$B$5)*3,IF(base!$B$5>48,(1200/base!$B$5)*2,IF(base!$B$5>=36,(1200/base!$B$5)*1.5,(1200/base!$B$5))))) -> 
B41: =IF(Tableau!F40="","",IF(B40+Tableau!F40>base!$B$5,"",B40+Tableau!F40)) ->  | C41: =IF(C40="","",IF(B41="","",IF((1200/(base!$B$5-B40))>D41,1200/(base!$B$5-B40),1200/(base!$B$5-B40)))) ->  | D41: =IF(Tableau!F40="","",IF(base!$B$5>72,(1200/base!$B$5)*3,IF(base!$B$5>48,(1200/base!$B$5)*2,IF(base!$B$5>=36,(1200/base!$B$5)*1.5,(1200/base!$B$5))))) -> 
B42: =IF(Tableau!F41="","",IF(B41+Tableau!F41>base!$B$5,"",B41+Tableau!F41)) ->  | C42: =IF(C41="","",IF(B42="","",IF((1200/(base!$B$5-B41))>D42,1200/(base!$B$5-B41),1200/(base!$B$5-B41)))) ->  | D42: =IF(Tableau!F41="","",IF(base!$B$5>72,(1200/base!$B$5)*3,IF(base!$B$5>48,(1200/base!$B$5)*2,IF(base!$B$5>=36,(1200/base!$B$5)*1.5,(1200/base!$B$5))))) -> 
B43: =IF(Tableau!F42="","",IF(B42+Tableau!F42>base!$B$5,"",B42+Tableau!F42)) ->  | C43: =IF(C42="","",IF(B43="","",IF((1200/(base!$B$5-B42))>D43,1200/(base!$B$5-B42),1200/(base!$B$5-B42)))) ->  | D43: =IF(Tableau!F42="","",IF(base!$B$5>72,(1200/base!$B$5)*3,IF(base!$B$5>48,(1200/base!$B$5)*2,IF(base!$B$5>=36,(1200/base!$B$5)*1.5,(1200/base!$B$5))))) -> 
B44: =IF(Tableau!F43="","",IF(B43+Tableau!F43>base!$B$5,"",B43+Tableau!F43)) ->  | C44: =IF(C43="","",IF(B44="","",IF((1200/(base!$B$5-B43))>D44,1200/(base!$B$5-B43),1200/(base!$B$5-B43)))) ->  | D44: =IF(Tableau!F43="","",IF(base!$B$5>72,(1200/base!$B$5)*3,IF(base!$B$5>48,(1200/base!$B$5)*2,IF(base!$B$5>=36,(1200/base!$B$5)*1.5,(1200/base!$B$5))))) -> 
B45: =IF(Tableau!F44="","",IF(B44+Tableau!F44>base!$B$5,"",B44+Tableau!F44)) ->  | C45: =IF(C44="","",IF(B45="","",IF((1200/(base!$B$5-B44))>D45,1200/(base!$B$5-B44),1200/(base!$B$5-B44)))) ->  | D45: =IF(Tableau!F44="","",IF(base!$B$5>72,(1200/base!$B$5)*3,IF(base!$B$5>48,(1200/base!$B$5)*2,IF(base!$B$5>=36,(1200/base!$B$5)*1.5,(1200/base!$B$5))))) -> 
B46: =IF(Tableau!F45="","",IF(B45+Tableau!F45>base!$B$5,"",B45+Tableau!F45)) ->  | C46: =IF(C45="","",IF(B46="","",IF((1200/(base!$B$5-B45))>D46,1200/(base!$B$5-B45),1200/(base!$B$5-B45)))) ->  | D46: =IF(Tableau!F45="","",IF(base!$B$5>72,(1200/base!$B$5)*3,IF(base!$B$5>48,(1200/base!$B$5)*2,IF(base!$B$5>=36,(1200/base!$B$5)*1.5,(1200/base!$B$5))))) -> 
B47: =IF(Tableau!F46="","",IF(B46+Tableau!F46>base!$B$5,"",B46+Tableau!F46)) ->  | C47: =IF(C46="","",IF(B47="","",IF((1200/(base!$B$5-B46))>D47,1200/(base!$B$5-B46),1200/(base!$B$5-B46)))) ->  | D47: =IF(Tableau!F46="","",IF(base!$B$5>72,(1200/base!$B$5)*3,IF(base!$B$5>48,(1200/base!$B$5)*2,IF(base!$B$5>=36,(1200/base!$B$5)*1.5,(1200/base!$B$5))))) -> 
B48: =IF(Tableau!F47="","",IF(B47+Tableau!F47>base!$B$5,"",B47+Tableau!F47)) ->  | C48: =IF(C47="","",IF(B48="","",IF((1200/(base!$B$5-B47))>D48,1200/(base!$B$5-B47),1200/(base!$B$5-B47)))) ->  | D48: =IF(Tableau!F47="","",IF(base!$B$5>72,(1200/base!$B$5)*3,IF(base!$B$5>48,(1200/base!$B$5)*2,IF(base!$B$5>=36,(1200/base!$B$5)*1.5,(1200/base!$B$5))))) -> 
B49: =IF(Tableau!F48="","",IF(B48+Tableau!F48>base!$B$5,"",B48+Tableau!F48)) ->  | C49: =IF(C48="","",IF(B49="","",IF((1200/(base!$B$5-B48))>D49,1200/(base!$B$5-B48),1200/(base!$B$5-B48)))) ->  | D49: =IF(Tableau!F48="","",IF(base!$B$5>72,(1200/base!$B$5)*3,IF(base!$B$5>48,(1200/base!$B$5)*2,IF(base!$B$5>=36,(1200/base!$B$5)*1.5,(1200/base!$B$5))))) -> 
B50: =IF(Tableau!F49="","",IF(B49+Tableau!F49>base!$B$5,"",B49+Tableau!F49)) ->  | C50: =IF(C49="","",IF(B50="","",IF((1200/(base!$B$5-B49))>D50,1200/(base!$B$5-B49),1200/(base!$B$5-B49)))) ->  | D50: =IF(Tableau!F49="","",IF(base!$B$5>72,(1200/base!$B$5)*3,IF(base!$B$5>48,(1200/base!$B$5)*2,IF(base!$B$5>=36,(1200/base!$B$5)*1.5,(1200/base!$B$5))))) -> 
B51: =IF(Tableau!F50="","",IF(B50+Tableau!F50>base!$B$5,"",B50+Tableau!F50)) ->  | C51: =IF(C50="","",IF(B51="","",IF((1200/(base!$B$5-B50))>D51,1200/(base!$B$5-B50),1200/(base!$B$5-B50)))) ->  | D51: =IF(Tableau!F50="","",IF(base!$B$5>72,(1200/base!$B$5)*3,IF(base!$B$5>48,(1200/base!$B$5)*2,IF(base!$B$5>=36,(1200/base!$B$5)*1.5,(1200/base!$B$5))))) -> 
B52: =IF(Tableau!F51="","",IF(B51+Tableau!F51>base!$B$5,"",B51+Tableau!F51)) ->  | C52: =IF(C51="","",IF(B52="","",IF((1200/(base!$B$5-B51))>D52,1200/(base!$B$5-B51),1200/(base!$B$5-B51)))) ->  | D52: =IF(Tableau!F51="","",IF(base!$B$5>72,(1200/base!$B$5)*3,IF(base!$B$5>48,(1200/base!$B$5)*2,IF(base!$B$5>=36,(1200/base!$B$5)*1.5,(1200/base!$B$5))))) -> 
B53: =IF(Tableau!F52="","",IF(B52+Tableau!F52>base!$B$5,"",B52+Tableau!F52)) ->  | C53: =IF(C52="","",IF(B53="","",IF((1200/(base!$B$5-B52))>D53,1200/(base!$B$5-B52),1200/(base!$B$5-B52)))) ->  | D53: =IF(Tableau!F52="","",IF(base!$B$5>72,(1200/base!$B$5)*3,IF(base!$B$5>48,(1200/base!$B$5)*2,IF(base!$B$5>=36,(1200/base!$B$5)*1.5,(1200/base!$B$5))))) -> 
B54: =IF(Tableau!F53="","",IF(B53+Tableau!F53>base!$B$5,"",B53+Tableau!F53)) ->  | C54: =IF(C53="","",IF(B54="","",IF((1200/(base!$B$5-B53))>D54,1200/(base!$B$5-B53),1200/(base!$B$5-B53)))) ->  | D54: =IF(Tableau!F53="","",IF(base!$B$5>72,(1200/base!$B$5)*3,IF(base!$B$5>48,(1200/base!$B$5)*2,IF(base!$B$5>=36,(1200/base!$B$5)*1.5,(1200/base!$B$5))))) -> 
B55: =IF(Tableau!F54="","",IF(B54+Tableau!F54>base!$B$5,"",B54+Tableau!F54)) ->  | C55: =IF(C54="","",IF(B55="","",IF((1200/(base!$B$5-B54))>D55,1200/(base!$B$5-B54),1200/(base!$B$5-B54)))) ->  | D55: =IF(Tableau!F54="","",IF(base!$B$5>72,(1200/base!$B$5)*3,IF(base!$B$5>48,(1200/base!$B$5)*2,IF(base!$B$5>=36,(1200/base!$B$5)*1.5,(1200/base!$B$5))))) -> 
B56: =IF(Tableau!F55="","",IF(B55+Tableau!F55>base!$B$5,"",B55+Tableau!F55)) ->  | C56: =IF(C55="","",IF(B56="","",IF((1200/(base!$B$5-B55))>D56,1200/(base!$B$5-B55),1200/(base!$B$5-B55)))) ->  | D56: =IF(Tableau!F55="","",IF(base!$B$5>72,(1200/base!$B$5)*3,IF(base!$B$5>48,(1200/base!$B$5)*2,IF(base!$B$5>=36,(1200/base!$B$5)*1.5,(1200/base!$B$5))))) -> 
B57: =IF(Tableau!F56="","",IF(B56+Tableau!F56>base!$B$5,"",B56+Tableau!F56)) ->  | C57: =IF(C56="","",IF(B57="","",IF((1200/(base!$B$5-B56))>D57,1200/(base!$B$5-B56),1200/(base!$B$5-B56)))) ->  | D57: =IF(Tableau!F56="","",IF(base!$B$5>72,(1200/base!$B$5)*3,IF(base!$B$5>48,(1200/base!$B$5)*2,IF(base!$B$5>=36,(1200/base!$B$5)*1.5,(1200/base!$B$5))))) -> 
B58: =IF(Tableau!F57="","",IF(B57+Tableau!F57>base!$B$5,"",B57+Tableau!F57)) ->  | C58: =IF(C57="","",IF(B58="","",IF((1200/(base!$B$5-B57))>D58,1200/(base!$B$5-B57),1200/(base!$B$5-B57)))) ->  | D58: =IF(Tableau!F57="","",IF(base!$B$5>72,(1200/base!$B$5)*3,IF(base!$B$5>48,(1200/base!$B$5)*2,IF(base!$B$5>=36,(1200/base!$B$5)*1.5,(1200/base!$B$5))))) -> 
B59: =IF(Tableau!F58="","",IF(B58+Tableau!F58>base!$B$5,"",B58+Tableau!F58)) ->  | C59: =IF(C58="","",IF(B59="","",IF((1200/(base!$B$5-B58))>D59,1200/(base!$B$5-B58),1200/(base!$B$5-B58)))) ->  | D59: =IF(Tableau!F58="","",IF(base!$B$5>72,(1200/base!$B$5)*3,IF(base!$B$5>48,(1200/base!$B$5)*2,IF(base!$B$5>=36,(1200/base!$B$5)*1.5,(1200/base!$B$5))))) -> 
B60: =IF(Tableau!F59="","",IF(B59+Tableau!F59>base!$B$5,"",B59+Tableau!F59)) ->  | C60: =IF(C59="","",IF(B60="","",IF((1200/(base!$B$5-B59))>D60,1200/(base!$B$5-B59),1200/(base!$B$5-B59)))) ->  | D60: =IF(Tableau!F59="","",IF(base!$B$5>72,(1200/base!$B$5)*3,IF(base!$B$5>48,(1200/base!$B$5)*2,IF(base!$B$5>=36,(1200/base!$B$5)*1.5,(1200/base!$B$5))))) -> 
B61: =IF(Tableau!F60="","",IF(B60+Tableau!F60>base!$B$5,"",B60+Tableau!F60)) ->  | C61: =IF(C60="","",IF(B61="","",IF((1200/(base!$B$5-B60))>D61,1200/(base!$B$5-B60),1200/(base!$B$5-B60)))) ->  | D61: =IF(Tableau!F60="","",IF(base!$B$5>72,(1200/base!$B$5)*3,IF(base!$B$5>48,(1200/base!$B$5)*2,IF(base!$B$5>=36,(1200/base!$B$5)*1.5,(1200/base!$B$5))))) -> 
B62: =IF(Tableau!F61="","",IF(B61+Tableau!F61>base!$B$5,"",B61+Tableau!F61)) ->  | C62: =IF(C61="","",IF(B62="","",IF((1200/(base!$B$5-B61))>D62,1200/(base!$B$5-B61),1200/(base!$B$5-B61)))) ->  | D62: =IF(Tableau!F61="","",IF(base!$B$5>72,(1200/base!$B$5)*3,IF(base!$B$5>48,(1200/base!$B$5)*2,IF(base!$B$5>=36,(1200/base!$B$5)*1.5,(1200/base!$B$5))))) -> 
B63: =IF(Tableau!F62="","",IF(B62+Tableau!F62>base!$B$5,"",B62+Tableau!F62)) ->  | C63: =IF(C62="","",IF(B63="","",IF((1200/(base!$B$5-B62))>D63,1200/(base!$B$5-B62),1200/(base!$B$5-B62)))) ->  | D63: =IF(Tableau!F62="","",IF(base!$B$5>72,(1200/base!$B$5)*3,IF(base!$B$5>48,(1200/base!$B$5)*2,IF(base!$B$5>=36,(1200/base!$B$5)*1.5,(1200/base!$B$5))))) -> 
B64: =IF(Tableau!F63="","",IF(B63+Tableau!F63>base!$B$5,"",B63+Tableau!F63)) ->  | C64: =IF(C63="","",IF(B64="","",IF((1200/(base!$B$5-B63))>D64,1200/(base!$B$5-B63),1200/(base!$B$5-B63)))) ->  | D64: =IF(Tableau!F63="","",IF(base!$B$5>72,(1200/base!$B$5)*3,IF(base!$B$5>48,(1200/base!$B$5)*2,IF(base!$B$5>=36,(1200/base!$B$5)*1.5,(1200/base!$B$5))))) -> 
B65: =IF(Tableau!F64="","",IF(B64+Tableau!F64>base!$B$5,"",B64+Tableau!F64)) ->  | C65: =IF(C64="","",IF(B65="","",IF((1200/(base!$B$5-B64))>D65,1200/(base!$B$5-B64),1200/(base!$B$5-B64)))) ->  | D65: =IF(Tableau!F64="","",IF(base!$B$5>72,(1200/base!$B$5)*3,IF(base!$B$5>48,(1200/base!$B$5)*2,IF(base!$B$5>=36,(1200/base!$B$5)*1.5,(1200/base!$B$5))))) -> 
B66: =IF(Tableau!F65="","",IF(B65+Tableau!F65>base!$B$5,"",B65+Tableau!F65)) ->  | C66: =IF(C65="","",IF(B66="","",IF((1200/(base!$B$5-B65))>D66,1200/(base!$B$5-B65),1200/(base!$B$5-B65)))) ->  | D66: =IF(Tableau!F65="","",IF(base!$B$5>72,(1200/base!$B$5)*3,IF(base!$B$5>48,(1200/base!$B$5)*2,IF(base!$B$5>=36,(1200/base!$B$5)*1.5,(1200/base!$B$5))))) -> 
B67: =IF(Tableau!F66="","",IF(B66+Tableau!F66>base!$B$5,"",B66+Tableau!F66)) ->  | C67: =IF(C66="","",IF(B67="","",IF((1200/(base!$B$5-B66))>D67,1200/(base!$B$5-B66),1200/(base!$B$5-B66)))) ->  | D67: =IF(Tableau!F66="","",IF(base!$B$5>72,(1200/base!$B$5)*3,IF(base!$B$5>48,(1200/base!$B$5)*2,IF(base!$B$5>=36,(1200/base!$B$5)*1.5,(1200/base!$B$5))))) -> 
B68: =IF(Tableau!F67="","",IF(B67+Tableau!F67>base!$B$5,"",B67+Tableau!F67)) ->  | C68: =IF(C67="","",IF(B68="","",IF((1200/(base!$B$5-B67))>D68,1200/(base!$B$5-B67),1200/(base!$B$5-B67)))) ->  | D68: =IF(Tableau!F67="","",IF(base!$B$5>72,(1200/base!$B$5)*3,IF(base!$B$5>48,(1200/base!$B$5)*2,IF(base!$B$5>=36,(1200/base!$B$5)*1.5,(1200/base!$B$5))))) -> 
B69: =IF(Tableau!F68="","",IF(B68+Tableau!F68>base!$B$5,"",B68+Tableau!F68)) ->  | C69: =IF(C68="","",IF(B69="","",IF((1200/(base!$B$5-B68))>D69,1200/(base!$B$5-B68),1200/(base!$B$5-B68)))) ->  | D69: =IF(Tableau!F68="","",IF(base!$B$5>72,(1200/base!$B$5)*3,IF(base!$B$5>48,(1200/base!$B$5)*2,IF(base!$B$5>=36,(1200/base!$B$5)*1.5,(1200/base!$B$5))))) -> 
B70: =IF(Tableau!F69="","",IF(B69+Tableau!F69>base!$B$5,"",B69+Tableau!F69)) ->  | C70: =IF(C69="","",IF(B70="","",IF((1200/(base!$B$5-B69))>D70,1200/(base!$B$5-B69),1200/(base!$B$5-B69)))) ->  | D70: =IF(Tableau!F69="","",IF(base!$B$5>72,(1200/base!$B$5)*3,IF(base!$B$5>48,(1200/base!$B$5)*2,IF(base!$B$5>=36,(1200/base!$B$5)*1.5,(1200/base!$B$5))))) -> 
B71: =IF(Tableau!F70="","",IF(B70+Tableau!F70>base!$B$5,"",B70+Tableau!F70)) ->  | C71: =IF(C70="","",IF(B71="","",IF((1200/(base!$B$5-B70))>D71,1200/(base!$B$5-B70),1200/(base!$B$5-B70)))) ->  | D71: =IF(Tableau!F70="","",IF(base!$B$5>72,(1200/base!$B$5)*3,IF(base!$B$5>48,(1200/base!$B$5)*2,IF(base!$B$5>=36,(1200/base!$B$5)*1.5,(1200/base!$B$5))))) -> 
B72: =IF(Tableau!F71="","",IF(B71+Tableau!F71>base!$B$5,"",B71+Tableau!F71)) ->  | C72: =IF(C71="","",IF(B72="","",IF((1200/(base!$B$5-B71))>D72,1200/(base!$B$5-B71),1200/(base!$B$5-B71)))) ->  | D72: =IF(Tableau!F71="","",IF(base!$B$5>72,(1200/base!$B$5)*3,IF(base!$B$5>48,(1200/base!$B$5)*2,IF(base!$B$5>=36,(1200/base!$B$5)*1.5,(1200/base!$B$5))))) -> 
A73: =IF($A$7="","",IF($A$7="Taux à retenir",IF(OR(C73="",D73=""),"",MAX(C73,D73)))) ->  | B73: =IF(Tableau!F72="","",IF(B72+Tableau!F72>base!$B$5,"",B72+Tableau!F72)) ->  | C73: =IF(C72="","",IF(B73="","",IF((1200/(base!$B$5-B72))>D73,1200/(base!$B$5-B72),1200/(base!$B$5-B72)))) ->  | D73: =IF(Tableau!F72="","",IF(base!$B$5>72,(1200/base!$B$5)*3,IF(base!$B$5>48,(1200/base!$B$5)*2,IF(base!$B$5>=36,(1200/base!$B$5)*1.5,(1200/base!$B$5))))) -> 
B74: =IF(Tableau!F73="","",IF(B73+Tableau!F73>base!$B$5,"",B73+Tableau!F73)) ->  | C74: =IF(C73="","",IF(B74="","",IF((1200/(base!$B$5-B73))>D74,1200/(base!$B$5-B73),1200/(base!$B$5-B73)))) ->  | D74: =IF(Tableau!F73="","",IF(base!$B$5>72,(1200/base!$B$5)*3,IF(base!$B$5>48,(1200/base!$B$5)*2,IF(base!$B$5>=36,(1200/base!$B$5)*1.5,(1200/base!$B$5))))) -> 
B75: =IF(Tableau!F74="","",IF(B74+Tableau!F74>base!$B$5,"",B74+Tableau!F74)) ->  | C75: =IF(C74="","",IF(B75="","",IF((1200/(base!$B$5-B74))>D75,1200/(base!$B$5-B74),1200/(base!$B$5-B74)))) ->  | D75: =IF(Tableau!F74="","",IF(base!$B$5>72,(1200/base!$B$5)*3,IF(base!$B$5>48,(1200/base!$B$5)*2,IF(base!$B$5>=36,(1200/base!$B$5)*1.5,(1200/base!$B$5))))) -> 
B76: =IF(Tableau!F75="","",IF(B75+Tableau!F75>base!$B$5,"",B75+Tableau!F75)) ->  | C76: =IF(C75="","",IF(B76="","",IF((1200/(base!$B$5-B75))>D76,1200/(base!$B$5-B75),1200/(base!$B$5-B75)))) ->  | D76: =IF(Tableau!F75="","",IF(base!$B$5>72,(1200/base!$B$5)*3,IF(base!$B$5>48,(1200/base!$B$5)*2,IF(base!$B$5>=36,(1200/base!$B$5)*1.5,(1200/base!$B$5))))) -> 
B77: =IF(Tableau!F76="","",IF(B76+Tableau!F76>base!$B$5,"",B76+Tableau!F76)) ->  | C77: =IF(C76="","",IF(B77="","",IF((1200/(base!$B$5-B76))>D77,1200/(base!$B$5-B76),1200/(base!$B$5-B76)))) ->  | D77: =IF(Tableau!F76="","",IF(base!$B$5>72,(1200/base!$B$5)*3,IF(base!$B$5>48,(1200/base!$B$5)*2,IF(base!$B$5>=36,(1200/base!$B$5)*1.5,(1200/base!$B$5))))) -> 
B78: =IF(Tableau!F77="","",IF(B77+Tableau!F77>base!$B$5,"",B77+Tableau!F77)) ->  | C78: =IF(C77="","",IF(B78="","",IF((1200/(base!$B$5-B77))>D78,1200/(base!$B$5-B77),1200/(base!$B$5-B77)))) ->  | D78: =IF(Tableau!F77="","",IF(base!$B$5>72,(1200/base!$B$5)*3,IF(base!$B$5>48,(1200/base!$B$5)*2,IF(base!$B$5>=36,(1200/base!$B$5)*1.5,(1200/base!$B$5))))) -> 
B79: =IF(Tableau!F78="","",IF(B78+Tableau!F78>base!$B$5,"",B78+Tableau!F78)) ->  | C79: =IF(C78="","",IF(B79="","",IF((1200/(base!$B$5-B78))>D79,1200/(base!$B$5-B78),1200/(base!$B$5-B78)))) ->  | D79: =IF(Tableau!F78="","",IF(base!$B$5>72,(1200/base!$B$5)*3,IF(base!$B$5>48,(1200/base!$B$5)*2,IF(base!$B$5>=36,(1200/base!$B$5)*1.5,(1200/base!$B$5))))) -> 
B80: =IF(Tableau!F79="","",IF(B79+Tableau!F79>base!$B$5,"",B79+Tableau!F79)) ->  | C80: =IF(C79="","",IF(B80="","",IF((1200/(base!$B$5-B79))>D80,1200/(base!$B$5-B79),1200/(base!$B$5-B79)))) ->  | D80: =IF(Tableau!F79="","",IF(base!$B$5>72,(1200/base!$B$5)*3,IF(base!$B$5>48,(1200/base!$B$5)*2,IF(base!$B$5>=36,(1200/base!$B$5)*1.5,(1200/base!$B$5))))) -> 
B81: =IF(Tableau!F80="","",IF(B80+Tableau!F80>base!$B$5,"",B80+Tableau!F80)) ->  | C81: =IF(C80="","",IF(B81="","",IF((1200/(base!$B$5-B80))>D81,1200/(base!$B$5-B80),1200/(base!$B$5-B80)))) ->  | D81: =IF(Tableau!F80="","",IF(base!$B$5>72,(1200/base!$B$5)*3,IF(base!$B$5>48,(1200/base!$B$5)*2,IF(base!$B$5>=36,(1200/base!$B$5)*1.5,(1200/base!$B$5))))) -> 
B82: =IF(Tableau!F81="","",IF(B81+Tableau!F81>base!$B$5,"",B81+Tableau!F81)) ->  | C82: =IF(C81="","",IF(B82="","",IF((1200/(base!$B$5-B81))>D82,1200/(base!$B$5-B81),1200/(base!$B$5-B81)))) ->  | D82: =IF(Tableau!F81="","",IF(base!$B$5>72,(1200/base!$B$5)*3,IF(base!$B$5>48,(1200/base!$B$5)*2,IF(base!$B$5>=36,(1200/base!$B$5)*1.5,(1200/base!$B$5))))) -> 
B83: =IF(Tableau!F82="","",IF(B82+Tableau!F82>base!$B$5,"",B82+Tableau!F82)) ->  | C83: =IF(C82="","",IF(B83="","",IF((1200/(base!$B$5-B82))>D83,1200/(base!$B$5-B82),1200/(base!$B$5-B82)))) ->  | D83: =IF(Tableau!F82="","",IF(base!$B$5>72,(1200/base!$B$5)*3,IF(base!$B$5>48,(1200/base!$B$5)*2,IF(base!$B$5>=36,(1200/base!$B$5)*1.5,(1200/base!$B$5))))) -> 
B84: =IF(Tableau!F83="","",IF(B83+Tableau!F83>base!$B$5,"",B83+Tableau!F83)) ->  | C84: =IF(C83="","",IF(B84="","",IF((1200/(base!$B$5-B83))>D84,1200/(base!$B$5-B83),1200/(base!$B$5-B83)))) ->  | D84: =IF(Tableau!F83="","",IF(base!$B$5>72,(1200/base!$B$5)*3,IF(base!$B$5>48,(1200/base!$B$5)*2,IF(base!$B$5>=36,(1200/base!$B$5)*1.5,(1200/base!$B$5))))) -> 
B85: =IF(Tableau!F84="","",IF(B84+Tableau!F84>base!$B$5,"",B84+Tableau!F84)) ->  | C85: =IF(C84="","",IF(B85="","",IF((1200/(base!$B$5-B84))>D85,1200/(base!$B$5-B84),1200/(base!$B$5-B84)))) ->  | D85: =IF(Tableau!F84="","",IF(base!$B$5>72,(1200/base!$B$5)*3,IF(base!$B$5>48,(1200/base!$B$5)*2,IF(base!$B$5>=36,(1200/base!$B$5)*1.5,(1200/base!$B$5))))) -> 
B86: =IF(Tableau!F85="","",IF(B85+Tableau!F85>base!$B$5,"",B85+Tableau!F85)) ->  | C86: =IF(C85="","",IF(B86="","",IF((1200/(base!$B$5-B85))>D86,1200/(base!$B$5-B85),1200/(base!$B$5-B85)))) ->  | D86: =IF(Tableau!F85="","",IF(base!$B$5>72,(1200/base!$B$5)*3,IF(base!$B$5>48,(1200/base!$B$5)*2,IF(base!$B$5>=36,(1200/base!$B$5)*1.5,(1200/base!$B$5))))) -> 
B87: =IF(Tableau!F86="","",IF(B86+Tableau!F86>base!$B$5,"",B86+Tableau!F86)) ->  | C87: =IF(C86="","",IF(B87="","",IF((1200/(base!$B$5-B86))>D87,1200/(base!$B$5-B86),1200/(base!$B$5-B86)))) ->  | D87: =IF(Tableau!F86="","",IF(base!$B$5>72,(1200/base!$B$5)*3,IF(base!$B$5>48,(1200/base!$B$5)*2,IF(base!$B$5>=36,(1200/base!$B$5)*1.5,(1200/base!$B$5))))) -> 
B88: =IF(Tableau!F87="","",IF(B87+Tableau!F87>base!$B$5,"",B87+Tableau!F87)) ->  | C88: =IF(C87="","",IF(B88="","",IF((1200/(base!$B$5-B87))>D88,1200/(base!$B$5-B87),1200/(base!$B$5-B87)))) ->  | D88: =IF(Tableau!F87="","",IF(base!$B$5>72,(1200/base!$B$5)*3,IF(base!$B$5>48,(1200/base!$B$5)*2,IF(base!$B$5>=36,(1200/base!$B$5)*1.5,(1200/base!$B$5))))) -> 
B89: =IF(Tableau!F88="","",IF(B88+Tableau!F88>base!$B$5,"",B88+Tableau!F88)) ->  | C89: =IF(C88="","",IF(B89="","",IF((1200/(base!$B$5-B88))>D89,1200/(base!$B$5-B88),1200/(base!$B$5-B88)))) ->  | D89: =IF(Tableau!F88="","",IF(base!$B$5>72,(1200/base!$B$5)*3,IF(base!$B$5>48,(1200/base!$B$5)*2,IF(base!$B$5>=36,(1200/base!$B$5)*1.5,(1200/base!$B$5))))) -> 
B90: =IF(Tableau!F89="","",IF(B89+Tableau!F89>base!$B$5,"",B89+Tableau!F89)) ->  | C90: =IF(C89="","",IF(B90="","",IF((1200/(base!$B$5-B89))>D90,1200/(base!$B$5-B89),1200/(base!$B$5-B89)))) ->  | D90: =IF(Tableau!F89="","",IF(base!$B$5>72,(1200/base!$B$5)*3,IF(base!$B$5>48,(1200/base!$B$5)*2,IF(base!$B$5>=36,(1200/base!$B$5)*1.5,(1200/base!$B$5))))) -> 
B91: =IF(Tableau!F90="","",IF(B90+Tableau!F90>base!$B$5,"",B90+Tableau!F90)) ->  | C91: =IF(C90="","",IF(B91="","",IF((1200/(base!$B$5-B90))>D91,1200/(base!$B$5-B90),1200/(base!$B$5-B90)))) ->  | D91: =IF(Tableau!F90="","",IF(base!$B$5>72,(1200/base!$B$5)*3,IF(base!$B$5>48,(1200/base!$B$5)*2,IF(base!$B$5>=36,(1200/base!$B$5)*1.5,(1200/base!$B$5))))) -> 
B92: =IF(Tableau!F91="","",IF(B91+Tableau!F91>base!$B$5,"",B91+Tableau!F91)) ->  | C92: =IF(C91="","",IF(B92="","",IF((1200/(base!$B$5-B91))>D92,1200/(base!$B$5-B91),1200/(base!$B$5-B91)))) ->  | D92: =IF(Tableau!F91="","",IF(base!$B$5>72,(1200/base!$B$5)*3,IF(base!$B$5>48,(1200/base!$B$5)*2,IF(base!$B$5>=36,(1200/base!$B$5)*1.5,(1200/base!$B$5))))) -> 
B93: =IF(Tableau!F92="","",IF(B92+Tableau!F92>base!$B$5,"",B92+Tableau!F92)) ->  | C93: =IF(C92="","",IF(B93="","",IF((1200/(base!$B$5-B92))>D93,1200/(base!$B$5-B92),1200/(base!$B$5-B92)))) ->  | D93: =IF(Tableau!F92="","",IF(base!$B$5>72,(1200/base!$B$5)*3,IF(base!$B$5>48,(1200/base!$B$5)*2,IF(base!$B$5>=36,(1200/base!$B$5)*1.5,(1200/base!$B$5))))) -> 
B94: =IF(Tableau!F93="","",IF(B93+Tableau!F93>base!$B$5,"",B93+Tableau!F93)) ->  | C94: =IF(C93="","",IF(B94="","",IF((1200/(base!$B$5-B93))>D94,1200/(base!$B$5-B93),1200/(base!$B$5-B93)))) ->  | D94: =IF(Tableau!F93="","",IF(base!$B$5>72,(1200/base!$B$5)*3,IF(base!$B$5>48,(1200/base!$B$5)*2,IF(base!$B$5>=36,(1200/base!$B$5)*1.5,(1200/base!$B$5))))) -> 
B95: =IF(Tableau!F94="","",IF(B94+Tableau!F94>base!$B$5,"",B94+Tableau!F94)) ->  | C95: =IF(C94="","",IF(B95="","",IF((1200/(base!$B$5-B94))>D95,1200/(base!$B$5-B94),1200/(base!$B$5-B94)))) ->  | D95: =IF(Tableau!F94="","",IF(base!$B$5>72,(1200/base!$B$5)*3,IF(base!$B$5>48,(1200/base!$B$5)*2,IF(base!$B$5>=36,(1200/base!$B$5)*1.5,(1200/base!$B$5))))) -> 
B96: =IF(Tableau!F95="","",IF(B95+Tableau!F95>base!$B$5,"",B95+Tableau!F95)) ->  | C96: =IF(C95="","",IF(B96="","",IF((1200/(base!$B$5-B95))>D96,1200/(base!$B$5-B95),1200/(base!$B$5-B95)))) ->  | D96: =IF(Tableau!F95="","",IF(base!$B$5>72,(1200/base!$B$5)*3,IF(base!$B$5>48,(1200/base!$B$5)*2,IF(base!$B$5>=36,(1200/base!$B$5)*1.5,(1200/base!$B$5))))) -> 
B97: =IF(Tableau!F96="","",IF(B96+Tableau!F96>base!$B$5,"",B96+Tableau!F96)) ->  | C97: =IF(C96="","",IF(B97="","",IF((1200/(base!$B$5-B96))>D97,1200/(base!$B$5-B96),1200/(base!$B$5-B96)))) ->  | D97: =IF(Tableau!F96="","",IF(base!$B$5>72,(1200/base!$B$5)*3,IF(base!$B$5>48,(1200/base!$B$5)*2,IF(base!$B$5>=36,(1200/base!$B$5)*1.5,(1200/base!$B$5))))) -> 
B98: =IF(Tableau!F97="","",IF(B97+Tableau!F97>base!$B$5,"",B97+Tableau!F97)) ->  | C98: =IF(C97="","",IF(B98="","",IF((1200/(base!$B$5-B97))>D98,1200/(base!$B$5-B97),1200/(base!$B$5-B97)))) ->  | D98: =IF(Tableau!F97="","",IF(base!$B$5>72,(1200/base!$B$5)*3,IF(base!$B$5>48,(1200/base!$B$5)*2,IF(base!$B$5>=36,(1200/base!$B$5)*1.5,(1200/base!$B$5))))) -> 
B99: =IF(Tableau!F98="","",IF(B98+Tableau!F98>base!$B$5,"",B98+Tableau!F98)) ->  | C99: =IF(C98="","",IF(B99="","",IF((1200/(base!$B$5-B98))>D99,1200/(base!$B$5-B98),1200/(base!$B$5-B98)))) ->  | D99: =IF(Tableau!F98="","",IF(base!$B$5>72,(1200/base!$B$5)*3,IF(base!$B$5>48,(1200/base!$B$5)*2,IF(base!$B$5>=36,(1200/base!$B$5)*1.5,(1200/base!$B$5))))) -> 
B100: =IF(Tableau!F99="","",IF(B99+Tableau!F99>base!$B$5,"",B99+Tableau!F99)) ->  | C100: =IF(C99="","",IF(B100="","",IF((1200/(base!$B$5-B99))>D100,1200/(base!$B$5-B99),1200/(base!$B$5-B99)))) ->  | D100: =IF(Tableau!F99="","",IF(base!$B$5>72,(1200/base!$B$5)*3,IF(base!$B$5>48,(1200/base!$B$5)*2,IF(base!$B$5>=36,(1200/base!$B$5)*1.5,(1200/base!$B$5))))) -> 
B101: =IF(#REF!="","",IF(B100+#REF!>base!$B$5,"",B100+#REF!)) -> 
B102: =IF(#REF!="","",IF(B101+#REF!>base!$B$5,"",B101+#REF!)) -> 
B103: =IF(#REF!="","",IF(B102+#REF!>base!$B$5,"",B102+#REF!)) -> 
B104: =IF(#REF!="","",IF(B103+#REF!>base!$B$5,"",B103+#REF!)) -> 
B105: =IF(#REF!="","",IF(B104+#REF!>base!$B$5,"",B104+#REF!)) -> 
B106: =IF(#REF!="","",IF(B105+#REF!>base!$B$5,"",B105+#REF!)) -> 
B107: =IF(#REF!="","",IF(B106+#REF!>base!$B$5,"",B106+#REF!)) -> 
B108: =IF(#REF!="","",IF(B107+#REF!>base!$B$5,"",B107+#REF!)) -> 
B109: =IF(#REF!="","",IF(B108+#REF!>base!$B$5,"",B108+#REF!)) -> 
B110: =IF(#REF!="","",IF(B109+#REF!>base!$B$5,"",B109+#REF!)) -> 
B111: =IF(#REF!="","",IF(B110+#REF!>base!$B$5,"",B110+#REF!)) -> 
B112: =IF(#REF!="","",IF(B111+#REF!>base!$B$5,"",B111+#REF!)) -> 
B113: =IF(#REF!="","",IF(B112+#REF!>base!$B$5,"",B112+#REF!)) -> 
B114: =IF(#REF!="","",IF(B113+#REF!>base!$B$5,"",B113+#REF!)) -> 
B115: =IF(#REF!="","",IF(B114+#REF!>base!$B$5,"",B114+#REF!)) -> 
B116: =IF(#REF!="","",IF(B115+#REF!>base!$B$5,"",B115+#REF!)) -> 
B117: =IF(#REF!="","",IF(B116+#REF!>base!$B$5,"",B116+#REF!)) -> 
B118: =IF(#REF!="","",IF(B117+#REF!>base!$B$5,"",B117+#REF!)) -> 

Sheet Tableau
A1: Cliquez pour modifier les données
A5: Plan d'amortissement
A6: Année | B6: =IF(base!B6="","",IF(base!B6="linéaire","Valeur d'origine",IF(base!B6="dégressif","Base de calcul",""))) -> Base de calcul | C6: Annuité | D6: Cumul | E6: VNA | F6: n
A7: =IF(Tableau!F7="","",YEAR(base!B4)) -> 1994 | B7: =IF(A7="","",base!B3) -> 63,000.00 | C7: =IF(Tableau!A7="","",IF(base!$B$6="linéaire",base!$B$3*F7/base!$B$5,Tableau!B7*formules!A8*F7/1200)) -> 13,781.25 | D7: =IF(Tableau!A7="","",C7) -> 13,781.25 | E7: =IF(Tableau!A7="","",base!$B$3-D7) -> 49,218.75 | F7: =IF(MONTH(base!B4)="janvier",12,12-MONTH(base!B4)+1) -> 7
A8: =IF(Tableau!F8="","",IF(A7="","",A7+1)) -> 1995 | B8: =IF(A8="","",IF(base!$B$6="linéaire",base!$B$3,Tableau!E7)) -> 49,218.75 | C8: =IF(Tableau!A8="","",IF(base!$B$6="linéaire",base!$B$3*F8/base!$B$5,Tableau!B8*formules!A9*F8/1200)) -> 18,457.03 | D8: =IF(Tableau!A8="","",D7+C8) -> 32,238.28 | E8: =IF(Tableau!A8="","",base!$B$3-D8) -> 30,761.72 | F8: =IF(F7="","",IF(formules!B8=base!$B$5,"",IF(base!$B$5-formules!B8>12,12,base!$B$5-formules!B8))) -> 12
A9: =IF(Tableau!F9="","",IF(A8="","",A8+1)) -> 1996 | B9: =IF(A9="","",IF(base!$B$6="linéaire",base!$B$3,Tableau!E8)) -> 30,761.72 | C9: =IF(Tableau!A9="","",IF(base!$B$6="linéaire",base!$B$3*F9/base!$B$5,Tableau!B9*formules!A10*F9/1200)) -> 12,728.99 | D9: =IF(Tableau!A9="","",D8+C9) -> 44,967.27 | E9: =IF(Tableau!A9="","",base!$B$3-D9) -> 18,032.73 | F9: =IF(F8="","",IF(formules!B9=base!$B$5,"",IF(base!$B$5-formules!B9>12,12,base!$B$5-formules!B9))) -> 12
A10: =IF(Tableau!F10="","",IF(A9="","",A9+1)) -> 1997 | B10: =IF(A10="","",IF(base!$B$6="linéaire",base!$B$3,Tableau!E9)) -> 18,032.73 | C10: =IF(Tableau!A10="","",IF(base!$B$6="linéaire",base!$B$3*F10/base!$B$5,Tableau!B10*formules!A11*F10/1200)) -> 12,728.99 | D10: =IF(Tableau!A10="","",D9+C10) -> 57,696.26 | E10: =IF(Tableau!A10="","",base!$B$3-D10) -> 5,303.74 | F10: =IF(F9="","",IF(formules!B10=base!$B$5,"",IF(base!$B$5-formules!B10>12,12,base!$B$5-formules!B10))) -> 12
A11: =IF(Tableau!F11="","",IF(A10="","",A10+1)) -> 1998 | B11: =IF(A11="","",IF(base!$B$6="linéaire",base!$B$3,Tableau!E10)) -> 5,303.74 | C11: =IF(Tableau!A11="","",IF(base!$B$6="linéaire",base!$B$3*F11/base!$B$5,Tableau!B11*formules!A12*F11/1200)) -> 5,303.74 | D11: =IF(Tableau!A11="","",D10+C11) -> 63,000.00 | E11: =IF(Tableau!A11="","",base!$B$3-D11) -> 0.00 | F11: =IF(F10="","",IF(formules!B11=base!$B$5,"",IF(base!$B$5-formules!B11>12,12,base!$B$5-formules!B11))) -> 5
A12: =IF(Tableau!F12="","",IF(A11="","",A11+1)) ->  | B12: =IF(A12="","",IF(base!$B$6="linéaire",base!$B$3,Tableau!E11)) ->  | C12: =IF(Tableau!A12="","",IF(base!$B$6="linéaire",base!$B$3*F12/base!$B$5,Tableau!B12*formules!A13*F12/1200)) ->  | D12: =IF(Tableau!A12="","",D11+C12) ->  | E12: =IF(Tableau!A12="","",base!$B$3-D12) ->  | F12: =IF(F11="","",IF(formules!B12=base!$B$5,"",IF(base!$B$5-formules!B12>12,12,base!$B$5-formules!B12))) -> 
A13: =IF(Tableau!F13="","",IF(A12="","",A12+1)) ->  | B13: =IF(A13="","",IF(base!$B$6="linéaire",base!$B$3,Tableau!E12)) ->  | C13: =IF(Tableau!A13="","",IF(base!$B$6="linéaire",base!$B$3*F13/base!$B$5,Tableau!B13*formules!A14*F13/1200)) ->  | D13: =IF(Tableau!A13="","",D12+C13) ->  | E13: =IF(Tableau!A13="","",base!$B$3-D13) ->  | F13: =IF(F12="","",IF(formules!B13=base!$B$5,"",IF(base!$B$5-formules!B13>12,12,base!$B$5-formules!B13))) -> 
A14: =IF(Tableau!F14="","",IF(A13="","",A13+1)) ->  | B14: =IF(A14="","",IF(base!$B$6="linéaire",base!$B$3,Tableau!E13)) ->  | C14: =IF(Tableau!A14="","",IF(base!$B$6="linéaire",base!$B$3*F14/base!$B$5,Tableau!B14*formules!A15*F14/1200)) ->  | D14: =IF(Tableau!A14="","",D13+C14) ->  | E14: =IF(Tableau!A14="","",base!$B$3-D14) ->  | F14: =IF(F13="","",IF(formules!B14=base!$B$5,"",IF(base!$B$5-formules!B14>12,12,base!$B$5-formules!B14))) -> 
A15: =IF(Tableau!F15="","",IF(A14="","",A14+1)) ->  | B15: =IF(A15="","",IF(base!$B$6="linéaire",base!$B$3,Tableau!E14)) ->  | C15: =IF(Tableau!A15="","",IF(base!$B$6="linéaire",base!$B$3*F15/base!$B$5,Tableau!B15*formules!A16*F15/1200)) ->  | D15: =IF(Tableau!A15="","",D14+C15) ->  | E15: =IF(Tableau!A15="","",base!$B$3-D15) ->  | F15: =IF(F14="","",IF(formules!B15=base!$B$5,"",IF(base!$B$5-formules!B15>12,12,base!$B$5-formules!B15))) -> 
A16: =IF(Tableau!F16="","",IF(A15="","",A15+1)) ->  | B16: =IF(A16="","",IF(base!$B$6="linéaire",base!$B$3,Tableau!E15)) ->  | C16: =IF(Tableau!A16="","",IF(base!$B$6="linéaire",base!$B$3*F16/base!$B$5,Tableau!B16*formules!A17*F16/1200)) ->  | D16: =IF(Tableau!A16="","",D15+C16) ->  | E16: =IF(Tableau!A16="","",base!$B$3-D16) ->  | F16: =IF(F15="","",IF(formules!B16=base!$B$5,"",IF(base!$B$5-formules!B16>12,12,base!$B$5-formules!B16))) -> 
A17: =IF(Tableau!F17="","",IF(A16="","",A16+1)) ->  | B17: =IF(A17="","",IF(base!$B$6="linéaire",base!$B$3,Tableau!E16)) ->  | C17: =IF(Tableau!A17="","",IF(base!$B$6="linéaire",base!$B$3*F17/base!$B$5,Tableau!B17*formules!A18*F17/1200)) ->  | D17: =IF(Tableau!A17="","",D16+C17) ->  | E17: =IF(Tableau!A17="","",base!$B$3-D17) ->  | F17: =IF(F16="","",IF(formules!B17=base!$B$5,"",IF(base!$B$5-formules!B17>12,12,base!$B$5-formules!B17))) -> 
A18: =IF(Tableau!F18="","",IF(A17="","",A17+1)) ->  | B18: =IF(A18="","",IF(base!$B$6="linéaire",base!$B$3,Tableau!E17)) ->  | C18: =IF(Tableau!A18="","",IF(base!$B$6="linéaire",base!$B$3*F18/base!$B$5,Tableau!B18*formules!A19*F18/1200)) ->  | D18: =IF(Tableau!A18="","",D17+C18) ->  | E18: =IF(Tableau!A18="","",base!$B$3-D18) ->  | F18: =IF(F17="","",IF(formules!B18=base!$B$5,"",IF(base!$B$5-formules!B18>12,12,base!$B$5-formules!B18))) -> 
A19: =IF(Tableau!F19="","",IF(A18="","",A18+1)) ->  | B19: =IF(A19="","",IF(base!$B$6="linéaire",base!$B$3,Tableau!E18)) ->  | C19: =IF(Tableau!A19="","",IF(base!$B$6="linéaire",base!$B$3*F19/base!$B$5,Tableau!B19*formules!A20*F19/1200)) ->  | D19: =IF(Tableau!A19="","",D18+C19) ->  | E19: =IF(Tableau!A19="","",base!$B$3-D19) ->  | F19: =IF(F18="","",IF(formules!B19=base!$B$5,"",IF(base!$B$5-formules!B19>12,12,base!$B$5-formules!B19))) -> 
A20: =IF(Tableau!F20="","",IF(A19="","",A19+1)) ->  | B20: =IF(A20="","",IF(base!$B$6="linéaire",base!$B$3,Tableau!E19)) ->  | C20: =IF(Tableau!A20="","",IF(base!$B$6="linéaire",base!$B$3*F20/base!$B$5,Tableau!B20*formules!A21*F20/1200)) ->  | D20: =IF(Tableau!A20="","",D19+C20) ->  | E20: =IF(Tableau!A20="","",base!$B$3-D20) ->  | F20: =IF(F19="","",IF(formules!B20=base!$B$5,"",IF(base!$B$5-formules!B20>12,12,base!$B$5-formules!B20))) -> 
A21: =IF(Tableau!F21="","",IF(A20="","",A20+1)) ->  | B21: =IF(A21="","",IF(base!$B$6="linéaire",base!$B$3,Tableau!E20)) ->  | C21: =IF(Tableau!A21="","",IF(base!$B$6="linéaire",base!$B$3*F21/base!$B$5,Tableau!B21*formules!A22*F21/1200)) ->  | D21: =IF(Tableau!A21="","",D20+C21) ->  | E21: =IF(Tableau!A21="","",base!$B$3-D21) ->  | F21: =IF(F20="","",IF(formules!B21=base!$B$5,"",IF(base!$B$5-formules!B21>12,12,base!$B$5-formules!B21))) -> 
A22: =IF(Tableau!F22="","",IF(A21="","",A21+1)) ->  | B22: =IF(A22="","",IF(base!$B$6="linéaire",base!$B$3,Tableau!E21)) ->  | C22: =IF(Tableau!A22="","",IF(base!$B$6="linéaire",base!$B$3*F22/base!$B$5,Tableau!B22*formules!A23*F22/1200)) ->  | D22: =IF(Tableau!A22="","",D21+C22) ->  | E22: =IF(Tableau!A22="","",base!$B$3-D22) ->  | F22: =IF(F21="","",IF(formules!B22=base!$B$5,"",IF(base!$B$5-formules!B22>12,12,base!$B$5-formules!B22))) -> 
A23: =IF(Tableau!F23="","",IF(A22="","",A22+1)) ->  | B23: =IF(A23="","",IF(base!$B$6="linéaire",base!$B$3,Tableau!E22)) ->  | C23: =IF(Tableau!A23="","",IF(base!$B$6="linéaire",base!$B$3*F23/base!$B$5,Tableau!B23*formules!A24*F23/1200)) ->  | D23: =IF(Tableau!A23="","",D22+C23) ->  | E23: =IF(Tableau!A23="","",base!$B$3-D23) ->  | F23: =IF(F22="","",IF(formules!B23=base!$B$5,"",IF(base!$B$5-formules!B23>12,12,base!$B$5-formules!B23))) -> 
A24: =IF(Tableau!F24="","",IF(A23="","",A23+1)) ->  | B24: =IF(A24="","",IF(base!$B$6="linéaire",base!$B$3,Tableau!E23)) ->  | C24: =IF(Tableau!A24="","",IF(base!$B$6="linéaire",base!$B$3*F24/base!$B$5,Tableau!B24*formules!A25*F24/1200)) ->  | D24: =IF(Tableau!A24="","",D23+C24) ->  | E24: =IF(Tableau!A24="","",base!$B$3-D24) ->  | F24: =IF(F23="","",IF(formules!B24=base!$B$5,"",IF(base!$B$5-formules!B24>12,12,base!$B$5-formules!B24))) -> 
A25: =IF(Tableau!F25="","",IF(A24="","",A24+1)) ->  | B25: =IF(A25="","",IF(base!$B$6="linéaire",base!$B$3,Tableau!E24)) ->  | C25: =IF(Tableau!A25="","",IF(base!$B$6="linéaire",base!$B$3*F25/base!$B$5,Tableau!B25*formules!A26*F25/1200)) ->  | D25: =IF(Tableau!A25="","",D24+C25) ->  | E25: =IF(Tableau!A25="","",base!$B$3-D25) ->  | F25: =IF(F24="","",IF(formules!B25=base!$B$5,"",IF(base!$B$5-formules!B25>12,12,base!$B$5-formules!B25))) -> 
A26: =IF(Tableau!F26="","",IF(A25="","",A25+1)) ->  | B26: =IF(A26="","",IF(base!$B$6="linéaire",base!$B$3,Tableau!E25)) ->  | C26: =IF(Tableau!A26="","",IF(base!$B$6="linéaire",base!$B$3*F26/base!$B$5,Tableau!B26*formules!A27*F26/1200)) ->  | D26: =IF(Tableau!A26="","",D25+C26) ->  | E26: =IF(Tableau!A26="","",base!$B$3-D26) ->  | F26: =IF(F25="","",IF(formules!B26=base!$B$5,"",IF(base!$B$5-formules!B26>12,12,base!$B$5-formules!B26))) -> 
A27: =IF(Tableau!F27="","",IF(A26="","",A26+1)) ->  | B27: =IF(A27="","",IF(base!$B$6="linéaire",base!$B$3,Tableau!E26)) ->  | C27: =IF(Tableau!A27="","",IF(base!$B$6="linéaire",base!$B$3*F27/base!$B$5,Tableau!B27*formules!A28*F27/1200)) ->  | D27: =IF(Tableau!A27="","",D26+C27) ->  | E27: =IF(Tableau!A27="","",base!$B$3-D27) ->  | F27: =IF(F26="","",IF(formules!B27=base!$B$5,"",IF(base!$B$5-formules!B27>12,12,base!$B$5-formules!B27))) -> 
A28: =IF(Tableau!F28="","",IF(A27="","",A27+1)) ->  | B28: =IF(A28="","",IF(base!$B$6="linéaire",base!$B$3,Tableau!E27)) ->  | C28: =IF(Tableau!A28="","",IF(base!$B$6="linéaire",base!$B$3*F28/base!$B$5,Tableau!B28*formules!A29*F28/1200)) ->  | D28: =IF(Tableau!A28="","",D27+C28) ->  | E28: =IF(Tableau!A28="","",base!$B$3-D28) ->  | F28: =IF(F27="","",IF(formules!B28=base!$B$5,"",IF(base!$B$5-formules!B28>12,12,base!$B$5-formules!B28))) -> 
A29: =IF(Tableau!F29="","",IF(A28="","",A28+1)) ->  | B29: =IF(A29="","",IF(base!$B$6="linéaire",base!$B$3,Tableau!E28)) ->  | C29: =IF(Tableau!A29="","",IF(base!$B$6="linéaire",base!$B$3*F29/base!$B$5,Tableau!B29*formules!A30*F29/1200)) ->  | D29: =IF(Tableau!A29="","",D28+C29) ->  | E29: =IF(Tableau!A29="","",base!$B$3-D29) ->  | F29: =IF(F28="","",IF(formules!B29=base!$B$5,"",IF(base!$B$5-formules!B29>12,12,base!$B$5-formules!B29))) -> 
A30: =IF(Tableau!F30="","",IF(A29="","",A29+1)) ->  | B30: =IF(A30="","",IF(base!$B$6="linéaire",base!$B$3,Tableau!E29)) ->  | C30: =IF(Tableau!A30="","",IF(base!$B$6="linéaire",base!$B$3*F30/base!$B$5,Tableau!B30*formules!A31*F30/1200)) ->  | D30: =IF(Tableau!A30="","",D29+C30) ->  | E30: =IF(Tableau!A30="","",base!$B$3-D30) ->  | F30: =IF(F29="","",IF(formules!B30=base!$B$5,"",IF(base!$B$5-formules!B30>12,12,base!$B$5-formules!B30))) -> 
A31: =IF(Tableau!F31="","",IF(A30="","",A30+1)) ->  | B31: =IF(A31="","",IF(base!$B$6="linéaire",base!$B$3,Tableau!E30)) ->  | C31: =IF(Tableau!A31="","",IF(base!$B$6="linéaire",base!$B$3*F31/base!$B$5,Tableau!B31*formules!A32*F31/1200)) ->  | D31: =IF(Tableau!A31="","",D30+C31) ->  | E31: =IF(Tableau!A31="","",base!$B$3-D31) ->  | F31: =IF(F30="","",IF(formules!B31=base!$B$5,"",IF(base!$B$5-formules!B31>12,12,base!$B$5-formules!B31))) -> 
A32: =IF(Tableau!F32="","",IF(A31="","",A31+1)) ->  | B32: =IF(A32="","",IF(base!$B$6="linéaire",base!$B$3,Tableau!E31)) ->  | C32: =IF(Tableau!A32="","",IF(base!$B$6="linéaire",base!$B$3*F32/base!$B$5,Tableau!B32*formules!A33*F32/1200)) ->  | D32: =IF(Tableau!A32="","",D31+C32) ->  | E32: =IF(Tableau!A32="","",base!$B$3-D32) ->  | F32: =IF(F31="","",IF(formules!B32=base!$B$5,"",IF(base!$B$5-formules!B32>12,12,base!$B$5-formules!B32))) -> 
A33: =IF(Tableau!F33="","",IF(A32="","",A32+1)) ->  | B33: =IF(A33="","",IF(base!$B$6="linéaire",base!$B$3,Tableau!E32)) ->  | C33: =IF(Tableau!A33="","",IF(base!$B$6="linéaire",base!$B$3*F33/base!$B$5,Tableau!B33*formules!A34*F33/1200)) ->  | D33: =IF(Tableau!A33="","",D32+C33) ->  | E33: =IF(Tableau!A33="","",base!$B$3-D33) ->  | F33: =IF(F32="","",IF(formules!B33=base!$B$5,"",IF(base!$B$5-formules!B33>12,12,base!$B$5-formules!B33))) -> 
A34: =IF(Tableau!F34="","",IF(A33="","",A33+1)) ->  | B34: =IF(A34="","",IF(base!$B$6="linéaire",base!$B$3,Tableau!E33)) ->  | C34: =IF(Tableau!A34="","",IF(base!$B$6="linéaire",base!$B$3*F34/base!$B$5,Tableau!B34*formules!A35*F34/1200)) ->  | D34: =IF(Tableau!A34="","",D33+C34) ->  | E34: =IF(Tableau!A34="","",base!$B$3-D34) ->  | F34: =IF(F33="","",IF(formules!B34=base!$B$5,"",IF(base!$B$5-formules!B34>12,12,base!$B$5-formules!B34))) -> 
A35: =IF(Tableau!F35="","",IF(A34="","",A34+1)) ->  | B35: =IF(A35="","",IF(base!$B$6="linéaire",base!$B$3,Tableau!E34)) ->  | C35: =IF(Tableau!A35="","",IF(base!$B$6="linéaire",base!$B$3*F35/base!$B$5,Tableau!B35*formules!A36*F35/1200)) ->  | D35: =IF(Tableau!A35="","",D34+C35) ->  | E35: =IF(Tableau!A35="","",base!$B$3-D35) ->  | F35: =IF(F34="","",IF(formules!B35=base!$B$5,"",IF(base!$B$5-formules!B35>12,12,base!$B$5-formules!B35))) -> 
A36: =IF(Tableau!F36="","",IF(A35="","",A35+1)) ->  | B36: =IF(A36="","",IF(base!$B$6="linéaire",base!$B$3,Tableau!E35)) ->  | C36: =IF(Tableau!A36="","",IF(base!$B$6="linéaire",base!$B$3*F36/base!$B$5,Tableau!B36*formules!A37*F36/1200)) ->  | D36: =IF(Tableau!A36="","",D35+C36) ->  | E36: =IF(Tableau!A36="","",base!$B$3-D36) ->  | F36: =IF(F35="","",IF(formules!B36=base!$B$5,"",IF(base!$B$5-formules!B36>12,12,base!$B$5-formules!B36))) -> 
A37: =IF(Tableau!F37="","",IF(A36="","",A36+1)) ->  | B37: =IF(A37="","",IF(base!$B$6="linéaire",base!$B$3,Tableau!E36)) ->  | C37: =IF(Tableau!A37="","",IF(base!$B$6="linéaire",base!$B$3*F37/base!$B$5,Tableau!B37*formules!A38*F37/1200)) ->  | D37: =IF(Tableau!A37="","",D36+C37) ->  | E37: =IF(Tableau!A37="","",base!$B$3-D37) ->  | F37: =IF(F36="","",IF(formules!B37=base!$B$5,"",IF(base!$B$5-formules!B37>12,12,base!$B$5-formules!B37))) -> 
A38: =IF(Tableau!F38="","",IF(A37="","",A37+1)) ->  | B38: =IF(A38="","",IF(base!$B$6="linéaire",base!$B$3,Tableau!E37)) ->  | C38: =IF(Tableau!A38="","",IF(base!$B$6="linéaire",base!$B$3*F38/base!$B$5,Tableau!B38*formules!A39*F38/1200)) ->  | D38: =IF(Tableau!A38="","",D37+C38) ->  | E38: =IF(Tableau!A38="","",base!$B$3-D38) ->  | F38: =IF(F37="","",IF(formules!B38=base!$B$5,"",IF(base!$B$5-formules!B38>12,12,base!$B$5-formules!B38))) -> 
A39: =IF(Tableau!F39="","",IF(A38="","",A38+1)) ->  | B39: =IF(A39="","",IF(base!$B$6="linéaire",base!$B$3,Tableau!E38)) ->  | C39: =IF(Tableau!A39="","",IF(base!$B$6="linéaire",base!$B$3*F39/base!$B$5,Tableau!B39*formules!A40*F39/1200)) ->  | D39: =IF(Tableau!A39="","",D38+C39) ->  | E39: =IF(Tableau!A39="","",base!$B$3-D39) ->  | F39: =IF(F38="","",IF(formules!B39=base!$B$5,"",IF(base!$B$5-formules!B39>12,12,base!$B$5-formules!B39))) -> 
A40: =IF(Tableau!F40="","",IF(A39="","",A39+1)) ->  | B40: =IF(A40="","",IF(base!$B$6="linéaire",base!$B$3,Tableau!E39)) ->  | C40: =IF(Tableau!A40="","",IF(base!$B$6="linéaire",base!$B$3*F40/base!$B$5,Tableau!B40*formules!A41*F40/1200)) ->  | D40: =IF(Tableau!A40="","",D39+C40) ->  | E40: =IF(Tableau!A40="","",base!$B$3-D40) ->  | F40: =IF(F39="","",IF(formules!B40=base!$B$5,"",IF(base!$B$5-formules!B40>12,12,base!$B$5-formules!B40))) -> 
A41: =IF(Tableau!F41="","",IF(A40="","",A40+1)) ->  | B41: =IF(A41="","",IF(base!$B$6="linéaire",base!$B$3,Tableau!E40)) ->  | C41: =IF(Tableau!A41="","",IF(base!$B$6="linéaire",base!$B$3*F41/base!$B$5,Tableau!B41*formules!A42*F41/1200)) ->  | D41: =IF(Tableau!A41="","",D40+C41) ->  | E41: =IF(Tableau!A41="","",base!$B$3-D41) ->  | F41: =IF(F40="","",IF(formules!B41=base!$B$5,"",IF(base!$B$5-formules!B41>12,12,base!$B$5-formules!B41))) -> 
A42: =IF(Tableau!F42="","",IF(A41="","",A41+1)) ->  | B42: =IF(A42="","",IF(base!$B$6="linéaire",base!$B$3,Tableau!E41)) ->  | C42: =IF(Tableau!A42="","",IF(base!$B$6="linéaire",base!$B$3*F42/base!$B$5,Tableau!B42*formules!A43*F42/1200)) ->  | D42: =IF(Tableau!A42="","",D41+C42) ->  | E42: =IF(Tableau!A42="","",base!$B$3-D42) ->  | F42: =IF(F41="","",IF(formules!B42=base!$B$5,"",IF(base!$B$5-formules!B42>12,12,base!$B$5-formules!B42))) -> 
A43: =IF(Tableau!F43="","",IF(A42="","",A42+1)) ->  | B43: =IF(A43="","",IF(base!$B$6="linéaire",base!$B$3,Tableau!E42)) ->  | C43: =IF(Tableau!A43="","",IF(base!$B$6="linéaire",base!$B$3*F43/base!$B$5,Tableau!B43*formules!A44*F43/1200)) ->  | D43: =IF(Tableau!A43="","",D42+C43) ->  | E43: =IF(Tableau!A43="","",base!$B$3-D43) ->  | F43: =IF(F42="","",IF(formules!B43=base!$B$5,"",IF(base!$B$5-formules!B43>12,12,base!$B$5-formules!B43))) -> 
A44: =IF(Tableau!F44="","",IF(A43="","",A43+1)) ->  | B44: =IF(A44="","",IF(base!$B$6="linéaire",base!$B$3,Tableau!E43)) ->  | C44: =IF(Tableau!A44="","",IF(base!$B$6="linéaire",base!$B$3*F44/base!$B$5,Tableau!B44*formules!A45*F44/1200)) ->  | D44: =IF(Tableau!A44="","",D43+C44) ->  | E44: =IF(Tableau!A44="","",base!$B$3-D44) ->  | F44: =IF(F43="","",IF(formules!B44=base!$B$5,"",IF(base!$B$5-formules!B44>12,12,base!$B$5-formules!B44))) -> 
A45: =IF(Tableau!F45="","",IF(A44="","",A44+1)) ->  | B45: =IF(A45="","",IF(base!$B$6="linéaire",base!$B$3,Tableau!E44)) ->  | C45: =IF(Tableau!A45="","",IF(base!$B$6="linéaire",base!$B$3*F45/base!$B$5,Tableau!B45*formules!A46*F45/1200)) ->  | D45: =IF(Tableau!A45="","",D44+C45) ->  | E45: =IF(Tableau!A45="","",base!$B$3-D45) ->  | F45: =IF(F44="","",IF(formules!B45=base!$B$5,"",IF(base!$B$5-formules!B45>12,12,base!$B$5-formules!B45))) -> 
A46: =IF(Tableau!F46="","",IF(A45="","",A45+1)) ->  | B46: =IF(A46="","",IF(base!$B$6="linéaire",base!$B$3,Tableau!E45)) ->  | C46: =IF(Tableau!A46="","",IF(base!$B$6="linéaire",base!$B$3*F46/base!$B$5,Tableau!B46*formules!A47*F46/1200)) ->  | D46: =IF(Tableau!A46="","",D45+C46) ->  | E46: =IF(Tableau!A46="","",base!$B$3-D46) ->  | F46: =IF(F45="","",IF(formules!B46=base!$B$5,"",IF(base!$B$5-formules!B46>12,12,base!$B$5-formules!B46))) -> 
A47: =IF(Tableau!F47="","",IF(A46="","",A46+1)) ->  | B47: =IF(A47="","",IF(base!$B$6="linéaire",base!$B$3,Tableau!E46)) ->  | C47: =IF(Tableau!A47="","",IF(base!$B$6="linéaire",base!$B$3*F47/base!$B$5,Tableau!B47*formules!A48*F47/1200)) ->  | D47: =IF(Tableau!A47="","",D46+C47) ->  | E47: =IF(Tableau!A47="","",base!$B$3-D47) ->  | F47: =IF(F46="","",IF(formules!B47=base!$B$5,"",IF(base!$B$5-formules!B47>12,12,base!$B$5-formules!B47))) -> 
A48: =IF(Tableau!F48="","",IF(A47="","",A47+1)) ->  | B48: =IF(A48="","",IF(base!$B$6="linéaire",base!$B$3,Tableau!E47)) ->  | C48: =IF(Tableau!A48="","",IF(base!$B$6="linéaire",base!$B$3*F48/base!$B$5,Tableau!B48*formules!A49*F48/1200)) ->  | D48: =IF(Tableau!A48="","",D47+C48) ->  | E48: =IF(Tableau!A48="","",base!$B$3-D48) ->  | F48: =IF(F47="","",IF(formules!B48=base!$B$5,"",IF(base!$B$5-formules!B48>12,12,base!$B$5-formules!B48))) -> 
A49: =IF(Tableau!F49="","",IF(A48="","",A48+1)) ->  | B49: =IF(A49="","",IF(base!$B$6="linéaire",base!$B$3,Tableau!E48)) ->  | C49: =IF(Tableau!A49="","",IF(base!$B$6="linéaire",base!$B$3*F49/base!$B$5,Tableau!B49*formules!A50*F49/1200)) ->  | D49: =IF(Tableau!A49="","",D48+C49) ->  | E49: =IF(Tableau!A49="","",base!$B$3-D49) ->  | F49: =IF(F48="","",IF(formules!B49=base!$B$5,"",IF(base!$B$5-formules!B49>12,12,base!$B$5-formules!B49))) -> 
A50: =IF(Tableau!F50="","",IF(A49="","",A49+1)) ->  | B50: =IF(A50="","",IF(base!$B$6="linéaire",base!$B$3,Tableau!E49)) ->  | C50: =IF(Tableau!A50="","",IF(base!$B$6="linéaire",base!$B$3*F50/base!$B$5,Tableau!B50*formules!A51*F50/1200)) ->  | D50: =IF(Tableau!A50="","",D49+C50) ->  | E50: =IF(Tableau!A50="","",base!$B$3-D50) ->  | F50: =IF(F49="","",IF(formules!B50=base!$B$5,"",IF(base!$B$5-formules!B50>12,12,base!$B$5-formules!B50))) -> 
A51: =IF(Tableau!F51="","",IF(A50="","",A50+1)) ->  | B51: =IF(A51="","",IF(base!$B$6="linéaire",base!$B$3,Tableau!E50)) ->  | C51: =IF(Tableau!A51="","",IF(base!$B$6="linéaire",base!$B$3*F51/base!$B$5,Tableau!B51*formules!A52*F51/1200)) ->  | D51: =IF(Tableau!A51="","",D50+C51) ->  | E51: =IF(Tableau!A51="","",base!$B$3-D51) ->  | F51: =IF(F50="","",IF(formules!B51=base!$B$5,"",IF(base!$B$5-formules!B51>12,12,base!$B$5-formules!B51))) -> 
A52: =IF(Tableau!F52="","",IF(A51="","",A51+1)) ->  | B52: =IF(A52="","",IF(base!$B$6="linéaire",base!$B$3,Tableau!E51)) ->  | C52: =IF(Tableau!A52="","",IF(base!$B$6="linéaire",base!$B$3*F52/base!$B$5,Tableau!B52*formules!A53*F52/1200)) ->  | D52: =IF(Tableau!A52="","",D51+C52) ->  | E52: =IF(Tableau!A52="","",base!$B$3-D52) ->  | F52: =IF(F51="","",IF(formules!B52=base!$B$5,"",IF(base!$B$5-formules!B52>12,12,base!$B$5-formules!B52))) -> 
A53: =IF(Tableau!F53="","",IF(A52="","",A52+1)) ->  | B53: =IF(A53="","",IF(base!$B$6="linéaire",base!$B$3,Tableau!E52)) ->  | C53: =IF(Tableau!A53="","",IF(base!$B$6="linéaire",base!$B$3*F53/base!$B$5,Tableau!B53*formules!A54*F53/1200)) ->  | D53: =IF(Tableau!A53="","",D52+C53) ->  | E53: =IF(Tableau!A53="","",base!$B$3-D53) ->  | F53: =IF(F52="","",IF(formules!B53=base!$B$5,"",IF(base!$B$5-formules!B53>12,12,base!$B$5-formules!B53))) -> 
A54: =IF(Tableau!F54="","",IF(A53="","",A53+1)) ->  | B54: =IF(A54="","",IF(base!$B$6="linéaire",base!$B$3,Tableau!E53)) ->  | C54: =IF(Tableau!A54="","",IF(base!$B$6="linéaire",base!$B$3*F54/base!$B$5,Tableau!B54*formules!A55*F54/1200)) ->  | D54: =IF(Tableau!A54="","",D53+C54) ->  | E54: =IF(Tableau!A54="","",base!$B$3-D54) ->  | F54: =IF(F53="","",IF(formules!B54=base!$B$5,"",IF(base!$B$5-formules!B54>12,12,base!$B$5-formules!B54))) -> 
A55: =IF(Tableau!F55="","",IF(A54="","",A54+1)) ->  | B55: =IF(A55="","",IF(base!$B$6="linéaire",base!$B$3,Tableau!E54)) ->  | C55: =IF(Tableau!A55="","",IF(base!$B$6="linéaire",base!$B$3*F55/base!$B$5,Tableau!B55*formules!A56*F55/1200)) ->  | D55: =IF(Tableau!A55="","",D54+C55) ->  | E55: =IF(Tableau!A55="","",base!$B$3-D55) ->  | F55: =IF(F54="","",IF(formules!B55=base!$B$5,"",IF(base!$B$5-formules!B55>12,12,base!$B$5-formules!B55))) -> 
A56: =IF(Tableau!F56="","",IF(A55="","",A55+1)) ->  | B56: =IF(A56="","",IF(base!$B$6="linéaire",base!$B$3,Tableau!E55)) ->  | C56: =IF(Tableau!A56="","",IF(base!$B$6="linéaire",base!$B$3*F56/base!$B$5,Tableau!B56*formules!A57*F56/1200)) ->  | D56: =IF(Tableau!A56="","",D55+C56) ->  | E56: =IF(Tableau!A56="","",base!$B$3-D56) ->  | F56: =IF(F55="","",IF(formules!B56=base!$B$5,"",IF(base!$B$5-formules!B56>12,12,base!$B$5-formules!B56))) -> 
A57: =IF(Tableau!F57="","",IF(A56="","",A56+1)) ->  | B57: =IF(A57="","",IF(base!$B$6="linéaire",base!$B$3,Tableau!E56)) ->  | C57: =IF(Tableau!A57="","",IF(base!$B$6="linéaire",base!$B$3*F57/base!$B$5,Tableau!B57*formules!A58*F57/1200)) ->  | D57: =IF(Tableau!A57="","",D56+C57) ->  | E57: =IF(Tableau!A57="","",base!$B$3-D57) ->  | F57: =IF(F56="","",IF(formules!B57=base!$B$5,"",IF(base!$B$5-formules!B57>12,12,base!$B$5-formules!B57))) -> 
A58: =IF(Tableau!F58="","",IF(A57="","",A57+1)) ->  | B58: =IF(A58="","",IF(base!$B$6="linéaire",base!$B$3,Tableau!E57)) ->  | C58: =IF(Tableau!A58="","",IF(base!$B$6="linéaire",base!$B$3*F58/base!$B$5,Tableau!B58*formules!A59*F58/1200)) ->  | D58: =IF(Tableau!A58="","",D57+C58) ->  | E58: =IF(Tableau!A58="","",base!$B$3-D58) ->  | F58: =IF(F57="","",IF(formules!B58=base!$B$5,"",IF(base!$B$5-formules!B58>12,12,base!$B$5-formules!B58))) -> 
A59: =IF(Tableau!F59="","",IF(A58="","",A58+1)) ->  | B59: =IF(A59="","",IF(base!$B$6="linéaire",base!$B$3,Tableau!E58)) ->  | C59: =IF(Tableau!A59="","",IF(base!$B$6="linéaire",base!$B$3*F59/base!$B$5,Tableau!B59*formules!A60*F59/1200)) ->  | D59: =IF(Tableau!A59="","",D58+C59) ->  | E59: =IF(Tableau!A59="","",base!$B$3-D59) ->  | F59: =IF(F58="","",IF(formules!B59=base!$B$5,"",IF(base!$B$5-formules!B59>12,12,base!$B$5-formules!B59))) -> 
A60: =IF(Tableau!F60="","",IF(A59="","",A59+1)) ->  | B60: =IF(A60="","",IF(base!$B$6="linéaire",base!$B$3,Tableau!E59)) ->  | C60: =IF(Tableau!A60="","",IF(base!$B$6="linéaire",base!$B$3*F60/base!$B$5,Tableau!B60*formules!A61*F60/1200)) ->  | D60: =IF(Tableau!A60="","",D59+C60) ->  | E60: =IF(Tableau!A60="","",base!$B$3-D60) ->  | F60: =IF(F59="","",IF(formules!B60=base!$B$5,"",IF(base!$B$5-formules!B60>12,12,base!$B$5-formules!B60))) -> 
A61: =IF(Tableau!F61="","",IF(A60="","",A60+1)) ->  | B61: =IF(A61="","",IF(base!$B$6="linéaire",base!$B$3,Tableau!E60)) ->  | C61: =IF(Tableau!A61="","",IF(base!$B$6="linéaire",base!$B$3*F61/base!$B$5,Tableau!B61*formules!A62*F61/1200)) ->  | D61: =IF(Tableau!A61="","",D60+C61) ->  | E61: =IF(Tableau!A61="","",base!$B$3-D61) ->  | F61: =IF(F60="","",IF(formules!B61=base!$B$5,"",IF(base!$B$5-formules!B61>12,12,base!$B$5-formules!B61))) -> 
A62: =IF(Tableau!F62="","",IF(A61="","",A61+1)) ->  | B62: =IF(A62="","",IF(base!$B$6="linéaire",base!$B$3,Tableau!E61)) ->  | C62: =IF(Tableau!A62="","",IF(base!$B$6="linéaire",base!$B$3*F62/base!$B$5,Tableau!B62*formules!A63*F62/1200)) ->  | D62: =IF(Tableau!A62="","",D61+C62) ->  | E62: =IF(Tableau!A62="","",base!$B$3-D62) ->  | F62: =IF(F61="","",IF(formules!B62=base!$B$5,"",IF(base!$B$5-formules!B62>12,12,base!$B$5-formules!B62))) -> 
A63: =IF(Tableau!F63="","",IF(A62="","",A62+1)) ->  | B63: =IF(A63="","",IF(base!$B$6="linéaire",base!$B$3,Tableau!E62)) ->  | C63: =IF(Tableau!A63="","",IF(base!$B$6="linéaire",base!$B$3*F63/base!$B$5,Tableau!B63*formules!A64*F63/1200)) ->  | D63: =IF(Tableau!A63="","",D62+C63) ->  | E63: =IF(Tableau!A63="","",base!$B$3-D63) ->  | F63: =IF(F62="","",IF(formules!B63=base!$B$5,"",IF(base!$B$5-formules!B63>12,12,base!$B$5-formules!B63))) -> 
A64: =IF(Tableau!F64="","",IF(A63="","",A63+1)) ->  | B64: =IF(A64="","",IF(base!$B$6="linéaire",base!$B$3,Tableau!E63)) ->  | C64: =IF(Tableau!A64="","",IF(base!$B$6="linéaire",base!$B$3*F64/base!$B$5,Tableau!B64*formules!A65*F64/1200)) ->  | D64: =IF(Tableau!A64="","",D63+C64) ->  | E64: =IF(Tableau!A64="","",base!$B$3-D64) ->  | F64: =IF(F63="","",IF(formules!B64=base!$B$5,"",IF(base!$B$5-formules!B64>12,12,base!$B$5-formules!B64))) -> 
A65: =IF(Tableau!F65="","",IF(A64="","",A64+1)) ->  | B65: =IF(A65="","",IF(base!$B$6="linéaire",base!$B$3,Tableau!E64)) ->  | C65: =IF(Tableau!A65="","",IF(base!$B$6="linéaire",base!$B$3*F65/base!$B$5,Tableau!B65*formules!A66*F65/1200)) ->  | D65: =IF(Tableau!A65="","",D64+C65) ->  | E65: =IF(Tableau!A65="","",base!$B$3-D65) ->  | F65: =IF(F64="","",IF(formules!B65=base!$B$5,"",IF(base!$B$5-formules!B65>12,12,base!$B$5-formules!B65))) -> 
A66: =IF(Tableau!F66="","",IF(A65="","",A65+1)) ->  | B66: =IF(A66="","",IF(base!$B$6="linéaire",base!$B$3,Tableau!E65)) ->  | C66: =IF(Tableau!A66="","",IF(base!$B$6="linéaire",base!$B$3*F66/base!$B$5,Tableau!B66*formules!A67*F66/1200)) ->  | D66: =IF(Tableau!A66="","",D65+C66) ->  | E66: =IF(Tableau!A66="","",base!$B$3-D66) ->  | F66: =IF(F65="","",IF(formules!B66=base!$B$5,"",IF(base!$B$5-formules!B66>12,12,base!$B$5-formules!B66))) -> 
A67: =IF(Tableau!F67="","",IF(A66="","",A66+1)) ->  | B67: =IF(A67="","",IF(base!$B$6="linéaire",base!$B$3,Tableau!E66)) ->  | C67: =IF(Tableau!A67="","",IF(base!$B$6="linéaire",base!$B$3*F67/base!$B$5,Tableau!B67*formules!A68*F67/1200)) ->  | D67: =IF(Tableau!A67="","",D66+C67) ->  | E67: =IF(Tableau!A67="","",base!$B$3-D67) ->  | F67: =IF(F66="","",IF(formules!B67=base!$B$5,"",IF(base!$B$5-formules!B67>12,12,base!$B$5-formules!B67))) -> 
A68: =IF(Tableau!F68="","",IF(A67="","",A67+1)) ->  | B68: =IF(A68="","",IF(base!$B$6="linéaire",base!$B$3,Tableau!E67)) ->  | C68: =IF(Tableau!A68="","",IF(base!$B$6="linéaire",base!$B$3*F68/base!$B$5,Tableau!B68*formules!A69*F68/1200)) ->  | D68: =IF(Tableau!A68="","",D67+C68) ->  | E68: =IF(Tableau!A68="","",base!$B$3-D68) ->  | F68: =IF(F67="","",IF(formules!B68=base!$B$5,"",IF(base!$B$5-formules!B68>12,12,base!$B$5-formules!B68))) -> 
A69: =IF(Tableau!F69="","",IF(A68="","",A68+1)) ->  | B69: =IF(A69="","",IF(base!$B$6="linéaire",base!$B$3,Tableau!E68)) ->  | C69: =IF(Tableau!A69="","",IF(base!$B$6="linéaire",base!$B$3*F69/base!$B$5,Tableau!B69*formules!A70*F69/1200)) ->  | D69: =IF(Tableau!A69="","",D68+C69) ->  | E69: =IF(Tableau!A69="","",base!$B$3-D69) ->  | F69: =IF(F68="","",IF(formules!B69=base!$B$5,"",IF(base!$B$5-formules!B69>12,12,base!$B$5-formules!B69))) -> 
A70: =IF(Tableau!F70="","",IF(A69="","",A69+1)) ->  | B70: =IF(A70="","",IF(base!$B$6="linéaire",base!$B$3,Tableau!E69)) ->  | C70: =IF(Tableau!A70="","",IF(base!$B$6="linéaire",base!$B$3*F70/base!$B$5,Tableau!B70*formules!A71*F70/1200)) ->  | D70: =IF(Tableau!A70="","",D69+C70) ->  | E70: =IF(Tableau!A70="","",base!$B$3-D70) ->  | F70: =IF(F69="","",IF(formules!B70=base!$B$5,"",IF(base!$B$5-formules!B70>12,12,base!$B$5-formules!B70))) -> 
A71: =IF(Tableau!F71="","",IF(A70="","",A70+1)) ->  | B71: =IF(A71="","",IF(base!$B$6="linéaire",base!$B$3,Tableau!E70)) ->  | C71: =IF(Tableau!A71="","",IF(base!$B$6="linéaire",base!$B$3*F71/base!$B$5,Tableau!B71*formules!A72*F71/1200)) ->  | D71: =IF(Tableau!A71="","",D70+C71) ->  | E71: =IF(Tableau!A71="","",base!$B$3-D71) ->  | F71: =IF(F70="","",IF(formules!B71=base!$B$5,"",IF(base!$B$5-formules!B71>12,12,base!$B$5-formules!B71))) -> 
A72: =IF(Tableau!F72="","",IF(A71="","",A71+1)) ->  | B72: =IF(A72="","",IF(base!$B$6="linéaire",base!$B$3,Tableau!E71)) ->  | C72: =IF(Tableau!A72="","",IF(base!$B$6="linéaire",base!$B$3*F72/base!$B$5,Tableau!B72*formules!A73*F72/1200)) ->  | D72: =IF(Tableau!A72="","",D71+C72) ->  | E72: =IF(Tableau!A72="","",base!$B$3-D72) ->  | F72: =IF(F71="","",IF(formules!B72=base!$B$5,"",IF(base!$B$5-formules!B72>12,12,base!$B$5-formules!B72))) -> 
A73: =IF(Tableau!F73="","",IF(A72="","",A72+1)) ->  | B73: =IF(A73="","",IF(base!$B$6="linéaire",base!$B$3,Tableau!E72)) ->  | C73: =IF(Tableau!A73="","",IF(base!$B$6="linéaire",base!$B$3*F73/base!$B$5,Tableau!B73*formules!A74*F73/1200)) ->  | D73: =IF(Tableau!A73="","",D72+C73) ->  | E73: =IF(Tableau!A73="","",base!$B$3-D73) ->  | F73: =IF(F72="","",IF(formules!B73=base!$B$5,"",IF(base!$B$5-formules!B73>12,12,base!$B$5-formules!B73))) -> 
A74: =IF(Tableau!F74="","",IF(A73="","",A73+1)) ->  | B74: =IF(A74="","",IF(base!$B$6="linéaire",base!$B$3,Tableau!E73)) ->  | C74: =IF(Tableau!A74="","",IF(base!$B$6="linéaire",base!$B$3*F74/base!$B$5,Tableau!B74*formules!A75*F74/1200)) ->  | D74: =IF(Tableau!A74="","",D73+C74) ->  | E74: =IF(Tableau!A74="","",base!$B$3-D74) ->  | F74: =IF(F73="","",IF(formules!B74=base!$B$5,"",IF(base!$B$5-formules!B74>12,12,base!$B$5-formules!B74))) -> 
A75: =IF(Tableau!F75="","",IF(A74="","",A74+1)) ->  | B75: =IF(A75="","",IF(base!$B$6="linéaire",base!$B$3,Tableau!E74)) ->  | C75: =IF(Tableau!A75="","",IF(base!$B$6="linéaire",base!$B$3*F75/base!$B$5,Tableau!B75*formules!A76*F75/1200)) ->  | D75: =IF(Tableau!A75="","",D74+C75) ->  | E75: =IF(Tableau!A75="","",base!$B$3-D75) ->  | F75: =IF(F74="","",IF(formules!B75=base!$B$5,"",IF(base!$B$5-formules!B75>12,12,base!$B$5-formules!B75))) -> 
A76: =IF(Tableau!F76="","",IF(A75="","",A75+1)) ->  | B76: =IF(A76="","",IF(base!$B$6="linéaire",base!$B$3,Tableau!E75)) ->  | C76: =IF(Tableau!A76="","",IF(base!$B$6="linéaire",base!$B$3*F76/base!$B$5,Tableau!B76*formules!A77*F76/1200)) ->  | D76: =IF(Tableau!A76="","",D75+C76) ->  | E76: =IF(Tableau!A76="","",base!$B$3-D76) ->  | F76: =IF(F75="","",IF(formules!B76=base!$B$5,"",IF(base!$B$5-formules!B76>12,12,base!$B$5-formules!B76))) -> 
A77: =IF(Tableau!F77="","",IF(A76="","",A76+1)) ->  | B77: =IF(A77="","",IF(base!$B$6="linéaire",base!$B$3,Tableau!E76)) ->  | C77: =IF(Tableau!A77="","",IF(base!$B$6="linéaire",base!$B$3*F77/base!$B$5,Tableau!B77*formules!A78*F77/1200)) ->  | D77: =IF(Tableau!A77="","",D76+C77) ->  | E77: =IF(Tableau!A77="","",base!$B$3-D77) ->  | F77: =IF(F76="","",IF(formules!B77=base!$B$5,"",IF(base!$B$5-formules!B77>12,12,base!$B$5-formules!B77))) -> 
A78: =IF(Tableau!F78="","",IF(A77="","",A77+1)) ->  | B78: =IF(A78="","",IF(base!$B$6="linéaire",base!$B$3,Tableau!E77)) ->  | C78: =IF(Tableau!A78="","",IF(base!$B$6="linéaire",base!$B$3*F78/base!$B$5,Tableau!B78*formules!A79*F78/1200)) ->  | D78: =IF(Tableau!A78="","",D77+C78) ->  | E78: =IF(Tableau!A78="","",base!$B$3-D78) ->  | F78: =IF(F77="","",IF(formules!B78=base!$B$5,"",IF(base!$B$5-formules!B78>12,12,base!$B$5-formules!B78))) -> 
A79: =IF(Tableau!F79="","",IF(A78="","",A78+1)) ->  | B79: =IF(A79="","",IF(base!$B$6="linéaire",base!$B$3,Tableau!E78)) ->  | C79: =IF(Tableau!A79="","",IF(base!$B$6="linéaire",base!$B$3*F79/base!$B$5,Tableau!B79*formules!A80*F79/1200)) ->  | D79: =IF(Tableau!A79="","",D78+C79) ->  | E79: =IF(Tableau!A79="","",base!$B$3-D79) ->  | F79: =IF(F78="","",IF(formules!B79=base!$B$5,"",IF(base!$B$5-formules!B79>12,12,base!$B$5-formules!B79))) -> 
A80: =IF(Tableau!F80="","",IF(A79="","",A79+1)) ->  | B80: =IF(A80="","",IF(base!$B$6="linéaire",base!$B$3,Tableau!E79)) ->  | C80: =IF(Tableau!A80="","",IF(base!$B$6="linéaire",base!$B$3*F80/base!$B$5,Tableau!B80*formules!A81*F80/1200)) ->  | D80: =IF(Tableau!A80="","",D79+C80) ->  | E80: =IF(Tableau!A80="","",base!$B$3-D80) ->  | F80: =IF(F79="","",IF(formules!B80=base!$B$5,"",IF(base!$B$5-formules!B80>12,12,base!$B$5-formules!B80))) -> 
A81: =IF(Tableau!F81="","",IF(A80="","",A80+1)) ->  | B81: =IF(A81="","",IF(base!$B$6="linéaire",base!$B$3,Tableau!E80)) ->  | C81: =IF(Tableau!A81="","",IF(base!$B$6="linéaire",base!$B$3*F81/base!$B$5,Tableau!B81*formules!A82*F81/1200)) ->  | D81: =IF(Tableau!A81="","",D80+C81) ->  | E81: =IF(Tableau!A81="","",base!$B$3-D81) ->  | F81: =IF(F80="","",IF(formules!B81=base!$B$5,"",IF(base!$B$5-formules!B81>12,12,base!$B$5-formules!B81))) -> 
A82: =IF(Tableau!F82="","",IF(A81="","",A81+1)) ->  | B82: =IF(A82="","",IF(base!$B$6="linéaire",base!$B$3,Tableau!E81)) ->  | C82: =IF(Tableau!A82="","",IF(base!$B$6="linéaire",base!$B$3*F82/base!$B$5,Tableau!B82*formules!A83*F82/1200)) ->  | D82: =IF(Tableau!A82="","",D81+C82) ->  | E82: =IF(Tableau!A82="","",base!$B$3-D82) ->  | F82: =IF(F81="","",IF(formules!B82=base!$B$5,"",IF(base!$B$5-formules!B82>12,12,base!$B$5-formules!B82))) -> 
A83: =IF(Tableau!F83="","",IF(A82="","",A82+1)) ->  | B83: =IF(A83="","",IF(base!$B$6="linéaire",base!$B$3,Tableau!E82)) ->  | C83: =IF(Tableau!A83="","",IF(base!$B$6="linéaire",base!$B$3*F83/base!$B$5,Tableau!B83*formules!A84*F83/1200)) ->  | D83: =IF(Tableau!A83="","",D82+C83) ->  | E83: =IF(Tableau!A83="","",base!$B$3-D83) ->  | F83: =IF(F82="","",IF(formules!B83=base!$B$5,"",IF(base!$B$5-formules!B83>12,12,base!$B$5-formules!B83))) -> 
A84: =IF(Tableau!F84="","",IF(A83="","",A83+1)) ->  | B84: =IF(A84="","",IF(base!$B$6="linéaire",base!$B$3,Tableau!E83)) ->  | C84: =IF(Tableau!A84="","",IF(base!$B$6="linéaire",base!$B$3*F84/base!$B$5,Tableau!B84*formules!A85*F84/1200)) ->  | D84: =IF(Tableau!A84="","",D83+C84) ->  | E84: =IF(Tableau!A84="","",base!$B$3-D84) ->  | F84: =IF(F83="","",IF(formules!B84=base!$B$5,"",IF(base!$B$5-formules!B84>12,12,base!$B$5-formules!B84))) -> 
A85: =IF(Tableau!F85="","",IF(A84="","",A84+1)) ->  | B85: =IF(A85="","",IF(base!$B$6="linéaire",base!$B$3,Tableau!E84)) ->  | C85: =IF(Tableau!A85="","",IF(base!$B$6="linéaire",base!$B$3*F85/base!$B$5,Tableau!B85*formules!A86*F85/1200)) ->  | D85: =IF(Tableau!A85="","",D84+C85) ->  | E85: =IF(Tableau!A85="","",base!$B$3-D85) ->  | F85: =IF(F84="","",IF(formules!B85=base!$B$5,"",IF(base!$B$5-formules!B85>12,12,base!$B$5-formules!B85))) -> 
A86: =IF(Tableau!F86="","",IF(A85="","",A85+1)) ->  | B86: =IF(A86="","",IF(base!$B$6="linéaire",base!$B$3,Tableau!E85)) ->  | C86: =IF(Tableau!A86="","",IF(base!$B$6="linéaire",base!$B$3*F86/base!$B$5,Tableau!B86*formules!A87*F86/1200)) ->  | D86: =IF(Tableau!A86="","",D85+C86) ->  | E86: =IF(Tableau!A86="","",base!$B$3-D86) ->  | F86: =IF(F85="","",IF(formules!B86=base!$B$5,"",IF(base!$B$5-formules!B86>12,12,base!$B$5-formules!B86))) -> 
A87: =IF(Tableau!F87="","",IF(A86="","",A86+1)) ->  | B87: =IF(A87="","",IF(base!$B$6="linéaire",base!$B$3,Tableau!E86)) ->  | C87: =IF(Tableau!A87="","",IF(base!$B$6="linéaire",base!$B$3*F87/base!$B$5,Tableau!B87*formules!A88*F87/1200)) ->  | D87: =IF(Tableau!A87="","",D86+C87) ->  | E87: =IF(Tableau!A87="","",base!$B$3-D87) ->  | F87: =IF(F86="","",IF(formules!B87=base!$B$5,"",IF(base!$B$5-formules!B87>12,12,base!$B$5-formules!B87))) -> 
A88: =IF(Tableau!F88="","",IF(A87="","",A87+1)) ->  | B88: =IF(A88="","",IF(base!$B$6="linéaire",base!$B$3,Tableau!E87)) ->  | C88: =IF(Tableau!A88="","",IF(base!$B$6="linéaire",base!$B$3*F88/base!$B$5,Tableau!B88*formules!A89*F88/1200)) ->  | D88: =IF(Tableau!A88="","",D87+C88) ->  | E88: =IF(Tableau!A88="","",base!$B$3-D88) ->  | F88: =IF(F87="","",IF(formules!B88=base!$B$5,"",IF(base!$B$5-formules!B88>12,12,base!$B$5-formules!B88))) -> 
A89: =IF(Tableau!F89="","",IF(A88="","",A88+1)) ->  | B89: =IF(A89="","",IF(base!$B$6="linéaire",base!$B$3,Tableau!E88)) ->  | C89: =IF(Tableau!A89="","",IF(base!$B$6="linéaire",base!$B$3*F89/base!$B$5,Tableau!B89*formules!A90*F89/1200)) ->  | D89: =IF(Tableau!A89="","",D88+C89) ->  | E89: =IF(Tableau!A89="","",base!$B$3-D89) ->  | F89: =IF(F88="","",IF(formules!B89=base!$B$5,"",IF(base!$B$5-formules!B89>12,12,base!$B$5-formules!B89))) -> 
A90: =IF(Tableau!F90="","",IF(A89="","",A89+1)) ->  | B90: =IF(A90="","",IF(base!$B$6="linéaire",base!$B$3,Tableau!E89)) ->  | C90: =IF(Tableau!A90="","",IF(base!$B$6="linéaire",base!$B$3*F90/base!$B$5,Tableau!B90*formules!A91*F90/1200)) ->  | D90: =IF(Tableau!A90="","",D89+C90) ->  | E90: =IF(Tableau!A90="","",base!$B$3-D90) ->  | F90: =IF(F89="","",IF(formules!B90=base!$B$5,"",IF(base!$B$5-formules!B90>12,12,base!$B$5-formules!B90))) -> 
A91: =IF(Tableau!F91="","",IF(A90="","",A90+1)) ->  | B91: =IF(A91="","",IF(base!$B$6="linéaire",base!$B$3,Tableau!E90)) ->  | C91: =IF(Tableau!A91="","",IF(base!$B$6="linéaire",base!$B$3*F91/base!$B$5,Tableau!B91*formules!A92*F91/1200)) ->  | D91: =IF(Tableau!A91="","",D90+C91) ->  | E91: =IF(Tableau!A91="","",base!$B$3-D91) ->  | F91: =IF(F90="","",IF(formules!B91=base!$B$5,"",IF(base!$B$5-formules!B91>12,12,base!$B$5-formules!B91))) -> 
A92: =IF(Tableau!F92="","",IF(A91="","",A91+1)) ->  | B92: =IF(A92="","",IF(base!$B$6="linéaire",base!$B$3,Tableau!E91)) ->  | C92: =IF(Tableau!A92="","",IF(base!$B$6="linéaire",base!$B$3*F92/base!$B$5,Tableau!B92*formules!A93*F92/1200)) ->  | D92: =IF(Tableau!A92="","",D91+C92) ->  | E92: =IF(Tableau!A92="","",base!$B$3-D92) ->  | F92: =IF(F91="","",IF(formules!B92=base!$B$5,"",IF(base!$B$5-formules!B92>12,12,base!$B$5-formules!B92))) -> 
A93: =IF(Tableau!F93="","",IF(A92="","",A92+1)) ->  | B93: =IF(A93="","",IF(base!$B$6="linéaire",base!$B$3,Tableau!E92)) ->  | C93: =IF(Tableau!A93="","",IF(base!$B$6="linéaire",base!$B$3*F93/base!$B$5,Tableau!B93*formules!A94*F93/1200)) ->  | D93: =IF(Tableau!A93="","",D92+C93) ->  | E93: =IF(Tableau!A93="","",base!$B$3-D93) ->  | F93: =IF(F92="","",IF(formules!B93=base!$B$5,"",IF(base!$B$5-formules!B93>12,12,base!$B$5-formules!B93))) -> 
A94: =IF(Tableau!F94="","",IF(A93="","",A93+1)) ->  | B94: =IF(A94="","",IF(base!$B$6="linéaire",base!$B$3,Tableau!E93)) ->  | C94: =IF(Tableau!A94="","",IF(base!$B$6="linéaire",base!$B$3*F94/base!$B$5,Tableau!B94*formules!A95*F94/1200)) ->  | D94: =IF(Tableau!A94="","",D93+C94) ->  | E94: =IF(Tableau!A94="","",base!$B$3-D94) ->  | F94: =IF(F93="","",IF(formules!B94=base!$B$5,"",IF(base!$B$5-formules!B94>12,12,base!$B$5-formules!B94))) -> 
A95: =IF(Tableau!F95="","",IF(A94="","",A94+1)) ->  | B95: =IF(A95="","",IF(base!$B$6="linéaire",base!$B$3,Tableau!E94)) ->  | C95: =IF(Tableau!A95="","",IF(base!$B$6="linéaire",base!$B$3*F95/base!$B$5,Tableau!B95*formules!A96*F95/1200)) ->  | D95: =IF(Tableau!A95="","",D94+C95) ->  | E95: =IF(Tableau!A95="","",base!$B$3-D95) ->  | F95: =IF(F94="","",IF(formules!B95=base!$B$5,"",IF(base!$B$5-formules!B95>12,12,base!$B$5-formules!B95))) -> 
A96: =IF(Tableau!F96="","",IF(A95="","",A95+1)) ->  | B96: =IF(A96="","",IF(base!$B$6="linéaire",base!$B$3,Tableau!E95)) ->  | C96: =IF(Tableau!A96="","",IF(base!$B$6="linéaire",base!$B$3*F96/base!$B$5,Tableau!B96*formules!A97*F96/1200)) ->  | D96: =IF(Tableau!A96="","",D95+C96) ->  | E96: =IF(Tableau!A96="","",base!$B$3-D96) ->  | F96: =IF(F95="","",IF(formules!B96=base!$B$5,"",IF(base!$B$5-formules!B96>12,12,base!$B$5-formules!B96))) -> 
A97: =IF(Tableau!F97="","",IF(A96="","",A96+1)) ->  | B97: =IF(A97="","",IF(base!$B$6="linéaire",base!$B$3,Tableau!E96)) ->  | C97: =IF(Tableau!A97="","",IF(base!$B$6="linéaire",base!$B$3*F97/base!$B$5,Tableau!B97*formules!A98*F97/1200)) ->  | D97: =IF(Tableau!A97="","",D96+C97) ->  | E97: =IF(Tableau!A97="","",base!$B$3-D97) ->  | F97: =IF(F96="","",IF(formules!B97=base!$B$5,"",IF(base!$B$5-formules!B97>12,12,base!$B$5-formules!B97))) -> 
A98: =IF(Tableau!F98="","",IF(A97="","",A97+1)) ->  | B98: =IF(A98="","",IF(base!$B$6="linéaire",base!$B$3,Tableau!E97)) ->  | C98: =IF(Tableau!A98="","",IF(base!$B$6="linéaire",base!$B$3*F98/base!$B$5,Tableau!B98*formules!A99*F98/1200)) ->  | D98: =IF(Tableau!A98="","",D97+C98) ->  | E98: =IF(Tableau!A98="","",base!$B$3-D98) ->  | F98: =IF(F97="","",IF(formules!B98=base!$B$5,"",IF(base!$B$5-formules!B98>12,12,base!$B$5-formules!B98))) -> 
A99: =IF(Tableau!F99="","",IF(A98="","",A98+1)) ->  | B99: =IF(A99="","",IF(base!$B$6="linéaire",base!$B$3,Tableau!E98)) ->  | C99: =IF(Tableau!A99="","",IF(base!$B$6="linéaire",base!$B$3*F99/base!$B$5,Tableau!B99*formules!A100*F99/1200)) ->  | D99: =IF(Tableau!A99="","",D98+C99) ->  | E99: =IF(Tableau!A99="","",base!$B$3-D99) ->  | F99: =IF(F98="","",IF(formules!B99=base!$B$5,"",IF(base!$B$5-formules!B99>12,12,base!$B$5-formules!B99))) -> 
